Workbook

Sheet Instructions
A1: Instructions for the use of HEBIFit Excel macro
A3: This software is not a medical product registerd with any notified body.
A4: It is limited to research use only. This excludes the use for diagnostic purposes.
A6: Content of this file
A7: This Excel macro contains three further sheets with the following content:
A8: - Input data: | B8: The recorded specimen spectrum is inserted here for evaluation.
B9: First column contains the wavelength array. Second column contains the absorbance array.
A10: - Hb reference spectrum: | B10: Contains the Hb reference spectrum which is used by the fit for the evaluation.
B11: First column: wavelength array. Second column: absorbance array.
A12: - Temporary (hidden): | B12: Contains intermediate calculation results required by the fitting routine.
A14: Use of this file
A16: Make sure that
A17: - Absorbance spectra are recorded over the range of 350 nm to 650 nm with 0.5 nm step size, with the spectral bandpass set to 4 nm, and scan speed to 200 nm/min.
A18: - The wavelength and absorbance arrays have the same length for the Hb reference spectrum and the input spectra.
A19: - The wavelength array has the same content for both sheets and has to be ordered decending. for both sheets
A20: - Only light green shaded cells should be changed to ensure functionality of the macro.
A22: Preparations before the first measurement
A23: Even though we provide a Hb reference spectrum, we suggest recording a new reference spectrum with the device the method is implemented with.
A24: Step 1: | B24: Prepare a sample with 9 mg/dl fHb in aqua dest. from full blood hemolysate (100 mg/dl in 1:11 dilution)
A25: Step 2: | B25: Record an absorbance spectrum of this sample vs. blank buffer solution
A26: Step 3: | B26: Insert the absorbance measured in sheet "Hb reference spectrum", cells "B2:B602"
A28: Performing a measurement
A29: Step 1: | B29: Copy and paste the recorded specimen spectrum (absorbance array) into the sheet "Input Data", column "B010 to B610"
A30: Step 2: | B30: Enter sample ID in sheet "Input Data", cell "B01"
A31: Step 3: | B31: Enter the dilution factor according to the dilution used on the recorded specimen
A32: Step 4: | B32: Press the "Evaluate" button
A33: A new sheet labeled according to the sample ID is generated and the fit result is displayed, including the result of Harboe and Kahn

Sheet Input data
A1: Sample ID | B1: Non icteric sample | C1: Icteric sample | D1: 3 | E1: 4 | F1: 5
A2: Dilution | B2: 11 | C2: 11 | D2: 11 | E2: 11 | F2: 11
B3: 111.6468981 | C3: 111.6468981 | D3: 111.6468981 | E3: 111.6468981 | F3: 111.6468981
A4: fHb (HEBIFit) | B4: 0 | C4: 0 | D4: 0 | E4: 0 | F4: 0
A5: Bilirubin (HEBIFit) | B5: 0 | C5: 0 | D5: 0 | E5: 0 | F5: 0
A6: fHb (Harboe) | B6: =(168*B481-84*B551-84*B411)*B$2/11 -> 78.456 | C6: =(168*C481-84*C551-84*C411)*C$2/11 -> 130.032 | D6: 0 | E6: 0 | F6: 0
A7: fHb (Kahn) | B7: =11*(155*B154-86*B186-69*B114)*B$2/11 -> 71.082 | C7: =11*(155*C154-86*C186-69*C114)*C$2/11 -> 99.33 | D7: 0 | E7: 0 | F7: 0
A9: Wavelength (nm) | B9: Measured Spectrum | C9: Measured Spectrum | D9: Measured Spectrum | E9: Measured Spectrum | F9: Measured Spectrum
A10: ='Hb reference spectrum'!A2 -> 650 | B10: 0.006 | C10: 0.006
A11: ='Hb reference spectrum'!A3 -> 649.5 | B11: 0.006 | C11: 0.006
A12: ='Hb reference spectrum'!A4 -> 649 | B12: 0.006 | C12: 0.006
A13: ='Hb reference spectrum'!A5 -> 648.5 | B13: 0.006 | C13: 0.006
A14: ='Hb reference spectrum'!A6 -> 648 | B14: 0.006 | C14: 0.006
A15: ='Hb reference spectrum'!A7 -> 647.5 | B15: 0.006 | C15: 0.006
A16: ='Hb reference spectrum'!A8 -> 647 | B16: 0.006 | C16: 0.006
A17: ='Hb reference spectrum'!A9 -> 646.5 | B17: 0.006 | C17: 0.006
A18: ='Hb reference spectrum'!A10 -> 646 | B18: 0.006 | C18: 0.006
A19: ='Hb reference spectrum'!A11 -> 645.5 | B19: 0.006 | C19: 0.006
A20: ='Hb reference spectrum'!A12 -> 645 | B20: 0.006 | C20: 0.006
A21: ='Hb reference spectrum'!A13 -> 644.5 | B21: 0.006 | C21: 0.006
A22: ='Hb reference spectrum'!A14 -> 644 | B22: 0.006 | C22: 0.006
A23: ='Hb reference spectrum'!A15 -> 643.5 | B23: 0.006 | C23: 0.006
A24: ='Hb reference spectrum'!A16 -> 643 | B24: 0.006 | C24: 0.006
A25: ='Hb reference spectrum'!A17 -> 642.5 | B25: 0.006 | C25: 0.006
A26: ='Hb reference spectrum'!A18 -> 642 | B26: 0.006 | C26: 0.006
A27: ='Hb reference spectrum'!A19 -> 641.5 | B27: 0.006 | C27: 0.006
A28: ='Hb reference spectrum'!A20 -> 641 | B28: 0.006 | C28: 0.006
A29: ='Hb reference spectrum'!A21 -> 640.5 | B29: 0.006 | C29: 0.006
A30: ='Hb reference spectrum'!A22 -> 640 | B30: 0.006 | C30: 0.006
A31: ='Hb reference spectrum'!A23 -> 639.5 | B31: 0.007 | C31: 0.006
A32: ='Hb reference spectrum'!A24 -> 639 | B32: 0.007 | C32: 0.007
A33: ='Hb reference spectrum'!A25 -> 638.5 | B33: 0.007 | C33: 0.007
A34: ='Hb reference spectrum'!A26 -> 638 | B34: 0.007 | C34: 0.007
A35: ='Hb reference spectrum'!A27 -> 637.5 | B35: 0.007 | C35: 0.007
A36: ='Hb reference spectrum'!A28 -> 637 | B36: 0.007 | C36: 0.007
A37: ='Hb reference spectrum'!A29 -> 636.5 | B37: 0.007 | C37: 0.007
A38: ='Hb reference spectrum'!A30 -> 636 | B38: 0.007 | C38: 0.007
A39: ='Hb reference spectrum'!A31 -> 635.5 | B39: 0.007 | C39: 0.007
A40: ='Hb reference spectrum'!A32 -> 635 | B40: 0.007 | C40: 0.007
A41: ='Hb reference spectrum'!A33 -> 634.5 | B41: 0.007 | C41: 0.007
A42: ='Hb reference spectrum'!A34 -> 634 | B42: 0.007 | C42: 0.007
A43: ='Hb reference spectrum'!A35 -> 633.5 | B43: 0.007 | C43: 0.007
A44: ='Hb reference spectrum'!A36 -> 633 | B44: 0.007 | C44: 0.007
A45: ='Hb reference spectrum'!A37 -> 632.5 | B45: 0.007 | C45: 0.007
A46: ='Hb reference spectrum'!A38 -> 632 | B46: 0.007 | C46: 0.007
A47: ='Hb reference spectrum'!A39 -> 631.5 | B47: 0.007 | C47: 0.007
A48: ='Hb reference spectrum'!A40 -> 631 | B48: 0.007 | C48: 0.007
A49: ='Hb reference spectrum'!A41 -> 630.5 | B49: 0.007 | C49: 0.007
A50: ='Hb reference spectrum'!A42 -> 630 | B50: 0.007 | C50: 0.007
A51: ='Hb reference spectrum'!A43 -> 629.5 | B51: 0.007 | C51: 0.007
A52: ='Hb reference spectrum'!A44 -> 629 | B52: 0.007 | C52: 0.007
A53: ='Hb reference spectrum'!A45 -> 628.5 | B53: 0.007 | C53: 0.007
A54: ='Hb reference spectrum'!A46 -> 628 | B54: 0.007 | C54: 0.007
A55: ='Hb reference spectrum'!A47 -> 627.5 | B55: 0.007 | C55: 0.007
A56: ='Hb reference spectrum'!A48 -> 627 | B56: 0.007 | C56: 0.007
A57: ='Hb reference spectrum'!A49 -> 626.5 | B57: 0.007 | C57: 0.008
A58: ='Hb reference spectrum'!A50 -> 626 | B58: 0.007 | C58: 0.008
A59: ='Hb reference spectrum'!A51 -> 625.5 | B59: 0.007 | C59: 0.008
A60: ='Hb reference spectrum'!A52 -> 625 | B60: 0.007 | C60: 0.008
A61: ='Hb reference spectrum'!A53 -> 624.5 | B61: 0.007 | C61: 0.008
A62: ='Hb reference spectrum'!A54 -> 624 | B62: 0.007 | C62: 0.008
A63: ='Hb reference spectrum'!A55 -> 623.5 | B63: 0.007 | C63: 0.008
A64: ='Hb reference spectrum'!A56 -> 623 | B64: 0.007 | C64: 0.008
A65: ='Hb reference spectrum'!A57 -> 622.5 | B65: 0.007 | C65: 0.008
A66: ='Hb reference spectrum'!A58 -> 622 | B66: 0.007 | C66: 0.008
A67: ='Hb reference spectrum'!A59 -> 621.5 | B67: 0.008 | C67: 0.008
A68: ='Hb reference spectrum'!A60 -> 621 | B68: 0.008 | C68: 0.008
A69: ='Hb reference spectrum'!A61 -> 620.5 | B69: 0.008 | C69: 0.008
A70: ='Hb reference spectrum'!A62 -> 620 | B70: 0.008 | C70: 0.008
A71: ='Hb reference spectrum'!A63 -> 619.5 | B71: 0.008 | C71: 0.008
A72: ='Hb reference spectrum'!A64 -> 619 | B72: 0.008 | C72: 0.008
A73: ='Hb reference spectrum'!A65 -> 618.5 | B73: 0.008 | C73: 0.008
A74: ='Hb reference spectrum'!A66 -> 618 | B74: 0.008 | C74: 0.008
A75: ='Hb reference spectrum'!A67 -> 617.5 | B75: 0.008 | C75: 0.008
A76: ='Hb reference spectrum'!A68 -> 617 | B76: 0.008 | C76: 0.008
A77: ='Hb reference spectrum'!A69 -> 616.5 | B77: 0.008 | C77: 0.008
A78: ='Hb reference spectrum'!A70 -> 616 | B78: 0.008 | C78: 0.009
A79: ='Hb reference spectrum'!A71 -> 615.5 | B79: 0.008 | C79: 0.009
A80: ='Hb reference spectrum'!A72 -> 615 | B80: 0.008 | C80: 0.009
A81: ='Hb reference spectrum'!A73 -> 614.5 | B81: 0.008 | C81: 0.009
A82: ='Hb reference spectrum'!A74 -> 614 | B82: 0.008 | C82: 0.009
A83: ='Hb reference spectrum'!A75 -> 613.5 | B83: 0.008 | C83: 0.009
A84: ='Hb reference spectrum'!A76 -> 613 | B84: 0.008 | C84: 0.009
A85: ='Hb reference spectrum'!A77 -> 612.5 | B85: 0.008 | C85: 0.009
A86: ='Hb reference spectrum'!A78 -> 612 | B86: 0.008 | C86: 0.009
A87: ='Hb reference spectrum'!A79 -> 611.5 | B87: 0.008 | C87: 0.009
A88: ='Hb reference spectrum'!A80 -> 611 | B88: 0.008 | C88: 0.009
A89: ='Hb reference spectrum'!A81 -> 610.5 | B89: 0.008 | C89: 0.009
A90: ='Hb reference spectrum'!A82 -> 610 | B90: 0.009 | C90: 0.009
A91: ='Hb reference spectrum'!A83 -> 609.5 | B91: 0.009 | C91: 0.009
A92: ='Hb reference spectrum'!A84 -> 609 | B92: 0.009 | C92: 0.01
A93: ='Hb reference spectrum'!A85 -> 608.5 | B93: 0.009 | C93: 0.01
A94: ='Hb reference spectrum'!A86 -> 608 | B94: 0.009 | C94: 0.01
A95: ='Hb reference spectrum'!A87 -> 607.5 | B95: 0.009 | C95: 0.01
A96: ='Hb reference spectrum'!A88 -> 607 | B96: 0.009 | C96: 0.01
A97: ='Hb reference spectrum'!A89 -> 606.5 | B97: 0.009 | C97: 0.01
A98: ='Hb reference spectrum'!A90 -> 606 | B98: 0.009 | C98: 0.01
A99: ='Hb reference spectrum'!A91 -> 605.5 | B99: 0.009 | C99: 0.01
A100: ='Hb reference spectrum'!A92 -> 605 | B100: 0.009 | C100: 0.011
A101: ='Hb reference spectrum'!A93 -> 604.5 | B101: 0.01 | C101: 0.011
A102: ='Hb reference spectrum'!A94 -> 604 | B102: 0.01 | C102: 0.011
A103: ='Hb reference spectrum'!A95 -> 603.5 | B103: 0.01 | C103: 0.011
A104: ='Hb reference spectrum'!A96 -> 603 | B104: 0.01 | C104: 0.011
A105: ='Hb reference spectrum'!A97 -> 602.5 | B105: 0.01 | C105: 0.012
A106: ='Hb reference spectrum'!A98 -> 602 | B106: 0.01 | C106: 0.012
A107: ='Hb reference spectrum'!A99 -> 601.5 | B107: 0.01 | C107: 0.012
A108: ='Hb reference spectrum'!A100 -> 601 | B108: 0.011 | C108: 0.012
A109: ='Hb reference spectrum'!A101 -> 600.5 | B109: 0.011 | C109: 0.013
A110: ='Hb reference spectrum'!A102 -> 600 | B110: 0.011 | C110: 0.013
A111: ='Hb reference spectrum'!A103 -> 599.5 | B111: 0.011 | C111: 0.013
A112: ='Hb reference spectrum'!A104 -> 599 | B112: 0.011 | C112: 0.014
A113: ='Hb reference spectrum'!A105 -> 598.5 | B113: 0.012 | C113: 0.014
A114: ='Hb reference spectrum'!A106 -> 598 | B114: 0.012 | C114: 0.015
A115: ='Hb reference spectrum'!A107 -> 597.5 | B115: 0.012 | C115: 0.015
A116: ='Hb reference spectrum'!A108 -> 597 | B116: 0.013 | C116: 0.016
A117: ='Hb reference spectrum'!A109 -> 596.5 | B117: 0.013 | C117: 0.016
A118: ='Hb reference spectrum'!A110 -> 596 | B118: 0.014 | C118: 0.017
A119: ='Hb reference spectrum'!A111 -> 595.5 | B119: 0.014 | C119: 0.018
A120: ='Hb reference spectrum'!A112 -> 595 | B120: 0.015 | C120: 0.018
A121: ='Hb reference spectrum'!A113 -> 594.5 | B121: 0.015 | C121: 0.019
A122: ='Hb reference spectrum'!A114 -> 594 | B122: 0.016 | C122: 0.02
A123: ='Hb reference spectrum'!A115 -> 593.5 | B123: 0.016 | C123: 0.021
A124: ='Hb reference spectrum'!A116 -> 593 | B124: 0.017 | C124: 0.022
A125: ='Hb reference spectrum'!A117 -> 592.5 | B125: 0.018 | C125: 0.023
A126: ='Hb reference spectrum'!A118 -> 592 | B126: 0.019 | C126: 0.024
A127: ='Hb reference spectrum'!A119 -> 591.5 | B127: 0.02 | C127: 0.026
A128: ='Hb reference spectrum'!A120 -> 591 | B128: 0.021 | C128: 0.027
A129: ='Hb reference spectrum'!A121 -> 590.5 | B129: 0.022 | C129: 0.029
A130: ='Hb reference spectrum'!A122 -> 590 | B130: 0.023 | C130: 0.03
A131: ='Hb reference spectrum'!A123 -> 589.5 | B131: 0.024 | C131: 0.032
A132: ='Hb reference spectrum'!A124 -> 589 | B132: 0.026 | C132: 0.034
A133: ='Hb reference spectrum'!A125 -> 588.5 | B133: 0.027 | C133: 0.036
A134: ='Hb reference spectrum'!A126 -> 588 | B134: 0.029 | C134: 0.039
A135: ='Hb reference spectrum'!A127 -> 587.5 | B135: 0.031 | C135: 0.041
A136: ='Hb reference spectrum'!A128 -> 587 | B136: 0.033 | C136: 0.044
A137: ='Hb reference spectrum'!A129 -> 586.5 | B137: 0.035 | C137: 0.046
A138: ='Hb reference spectrum'!A130 -> 586 | B138: 0.037 | C138: 0.049
A139: ='Hb reference spectrum'!A131 -> 585.5 | B139: 0.039 | C139: 0.053
A140: ='Hb reference spectrum'!A132 -> 585 | B140: 0.042 | C140: 0.056
A141: ='Hb reference spectrum'!A133 -> 584.5 | B141: 0.044 | C141: 0.059
A142: ='Hb reference spectrum'!A134 -> 584 | B142: 0.047 | C142: 0.063
A143: ='Hb reference spectrum'!A135 -> 583.5 | B143: 0.05 | C143: 0.067
A144: ='Hb reference spectrum'!A136 -> 583 | B144: 0.052 | C144: 0.071
A145: ='Hb reference spectrum'!A137 -> 582.5 | B145: 0.055 | C145: 0.075
A146: ='Hb reference spectrum'!A138 -> 582 | B146: 0.057 | C146: 0.078
A147: ='Hb reference spectrum'!A139 -> 581.5 | B147: 0.06 | C147: 0.082
A148: ='Hb reference spectrum'!A140 -> 581 | B148: 0.062 | C148: 0.086
A149: ='Hb reference spectrum'!A141 -> 580.5 | B149: 0.064 | C149: 0.089
A150: ='Hb reference spectrum'!A142 -> 580 | B150: 0.066 | C150: 0.092
A151: ='Hb reference spectrum'!A143 -> 579.5 | B151: 0.068 | C151: 0.095
A152: ='Hb reference spectrum'!A144 -> 579 | B152: 0.07 | C152: 0.097
A153: ='Hb reference spectrum'!A145 -> 578.5 | B153: 0.071 | C153: 0.099
A154: ='Hb reference spectrum'!A146 -> 578 | B154: 0.072 | C154: 0.101
A155: ='Hb reference spectrum'!A147 -> 577.5 | B155: 0.072 | C155: 0.102
A156: ='Hb reference spectrum'!A148 -> 577 | B156: 0.073 | C156: 0.103
A157: ='Hb reference spectrum'!A149 -> 576.5 | B157: 0.073 | C157: 0.104
A158: ='Hb reference spectrum'!A150 -> 576 | B158: 0.073 | C158: 0.104
A159: ='Hb reference spectrum'!A151 -> 575.5 | B159: 0.072 | C159: 0.104
A160: ='Hb reference spectrum'!A152 -> 575 | B160: 0.071 | C160: 0.103
A161: ='Hb reference spectrum'!A153 -> 574.5 | B161: 0.071 | C161: 0.102
A162: ='Hb reference spectrum'!A154 -> 574 | B162: 0.07 | C162: 0.101
A163: ='Hb reference spectrum'!A155 -> 573.5 | B163: 0.069 | C163: 0.1
A164: ='Hb reference spectrum'!A156 -> 573 | B164: 0.067 | C164: 0.098
A165: ='Hb reference spectrum'!A157 -> 572.5 | B165: 0.066 | C165: 0.096
A166: ='Hb reference spectrum'!A158 -> 572 | B166: 0.065 | C166: 0.095
A167: ='Hb reference spectrum'!A159 -> 571.5 | B167: 0.063 | C167: 0.093
A168: ='Hb reference spectrum'!A160 -> 571 | B168: 0.062 | C168: 0.091
A169: ='Hb reference spectrum'!A161 -> 570.5 | B169: 0.061 | C169: 0.089
A170: ='Hb reference spectrum'!A162 -> 570 | B170: 0.059 | C170: 0.087
A171: ='Hb reference spectrum'!A163 -> 569.5 | B171: 0.058 | C171: 0.085
A172: ='Hb reference spectrum'!A164 -> 569 | B172: 0.057 | C172: 0.083
A173: ='Hb reference spectrum'!A165 -> 568.5 | B173: 0.055 | C173: 0.081
A174: ='Hb reference spectrum'!A166 -> 568 | B174: 0.054 | C174: 0.079
A175: ='Hb reference spectrum'!A167 -> 567.5 | B175: 0.053 | C175: 0.077
A176: ='Hb reference spectrum'!A168 -> 567 | B176: 0.052 | C176: 0.076
A177: ='Hb reference spectrum'!A169 -> 566.5 | B177: 0.051 | C177: 0.074
A178: ='Hb reference spectrum'!A170 -> 566 | B178: 0.05 | C178: 0.073
A179: ='Hb reference spectrum'!A171 -> 565.5 | B179: 0.049 | C179: 0.071
A180: ='Hb reference spectrum'!A172 -> 565 | B180: 0.048 | C180: 0.07
A181: ='Hb reference spectrum'!A173 -> 564.5 | B181: 0.047 | C181: 0.069
A182: ='Hb reference spectrum'!A174 -> 564 | B182: 0.047 | C182: 0.068
A183: ='Hb reference spectrum'!A175 -> 563.5 | B183: 0.046 | C183: 0.067
A184: ='Hb reference spectrum'!A176 -> 563 | B184: 0.046 | C184: 0.067
A185: ='Hb reference spectrum'!A177 -> 562.5 | B185: 0.045 | C185: 0.066
A186: ='Hb reference spectrum'!A178 -> 562 | B186: 0.045 | C186: 0.065
A187: ='Hb reference spectrum'!A179 -> 561.5 | B187: 0.045 | C187: 0.065
A188: ='Hb reference spectrum'!A180 -> 561 | B188: 0.045 | C188: 0.065
A189: ='Hb reference spectrum'!A181 -> 560.5 | B189: 0.045 | C189: 0.065
A190: ='Hb reference spectrum'!A182 -> 560 | B190: 0.045 | C190: 0.065
A191: ='Hb reference spectrum'!A183 -> 559.5 | B191: 0.045 | C191: 0.065
A192: ='Hb reference spectrum'!A184 -> 559 | B192: 0.045 | C192: 0.065
A193: ='Hb reference spectrum'!A185 -> 558.5 | B193: 0.045 | C193: 0.065
A194: ='Hb reference spectrum'!A186 -> 558 | B194: 0.046 | C194: 0.066
A195: ='Hb reference spectrum'!A187 -> 557.5 | B195: 0.046 | C195: 0.066
A196: ='Hb reference spectrum'!A188 -> 557 | B196: 0.046 | C196: 0.067
A197: ='Hb reference spectrum'!A189 -> 556.5 | B197: 0.047 | C197: 0.068
A198: ='Hb reference spectrum'!A190 -> 556 | B198: 0.047 | C198: 0.068
A199: ='Hb reference spectrum'!A191 -> 555.5 | B199: 0.048 | C199: 0.069
A200: ='Hb reference spectrum'!A192 -> 555 | B200: 0.049 | C200: 0.07
A201: ='Hb reference spectrum'!A193 -> 554.5 | B201: 0.049 | C201: 0.071
... 409 more rows

Sheet Hb reference spectrum
A1: Wavelength (nm) | B1: Hb Absorbance | C1: Normalized Hb Absorbance
A2: 650 | B2: 0.002666666667 | C2: =B2/MAX(B$2:B$602) -> 0.003696857671
A3: 649.5 | B3: 0.002666666667 | C3: =B3/MAX(B$2:B$602) -> 0.003696857671
A4: 649 | B4: 0.002666666667 | C4: 0.003696857671
A5: 648.5 | B5: 0.002666666667 | C5: 0.003696857671
A6: 648 | B6: 0.002666666667 | C6: 0.003696857671
A7: 647.5 | B7: 0.002666666667 | C7: 0.003696857671
A8: 647 | B8: 0.002666666667 | C8: 0.003696857671
A9: 646.5 | B9: 0.002666666667 | C9: 0.003696857671
A10: 646 | B10: 0.002666666667 | C10: 0.003696857671
A11: 645.5 | B11: 0.002666666667 | C11: 0.003696857671
A12: 645 | B12: 0.002666666667 | C12: 0.003696857671
A13: 644.5 | B13: 0.002666666667 | C13: 0.003696857671
A14: 644 | B14: 0.002666666667 | C14: 0.003696857671
A15: 643.5 | B15: 0.002666666667 | C15: 0.003696857671
A16: 643 | B16: 0.002666666667 | C16: 0.003696857671
A17: 642.5 | B17: 0.002666666667 | C17: 0.003696857671
A18: 642 | B18: 0.002666666667 | C18: 0.003696857671
A19: 641.5 | B19: 0.002666666667 | C19: 0.003696857671
A20: 641 | B20: 0.002666666667 | C20: 0.003696857671
A21: 640.5 | B21: 0.002666666667 | C21: 0.003696857671
A22: 640 | B22: 0.002666666667 | C22: 0.003696857671
A23: 639.5 | B23: 0.002666666667 | C23: 0.003696857671
A24: 639 | B24: 0.002666666667 | C24: 0.003696857671
A25: 638.5 | B25: 0.002666666667 | C25: 0.003696857671
A26: 638 | B26: 0.002666666667 | C26: 0.003696857671
A27: 637.5 | B27: 0.002666666667 | C27: 0.003696857671
A28: 637 | B28: 0.002666666667 | C28: 0.003696857671
A29: 636.5 | B29: 0.002666666667 | C29: 0.003696857671
A30: 636 | B30: 0.002666666667 | C30: 0.003696857671
A31: 635.5 | B31: 0.002666666667 | C31: 0.003696857671
A32: 635 | B32: 0.002666666667 | C32: 0.003696857671
A33: 634.5 | B33: 0.002666666667 | C33: 0.003696857671
A34: 634 | B34: 0.002666666667 | C34: 0.003696857671
A35: 633.5 | B35: 0.002666666667 | C35: 0.003696857671
A36: 633 | B36: 0.002666666667 | C36: 0.003696857671
A37: 632.5 | B37: 0.002666666667 | C37: 0.003696857671
A38: 632 | B38: 0.002666666667 | C38: 0.003696857671
A39: 631.5 | B39: 0.002666666667 | C39: 0.003696857671
A40: 631 | B40: 0.002666666667 | C40: 0.003696857671
A41: 630.5 | B41: 0.002666666667 | C41: 0.003696857671
A42: 630 | B42: 0.002666666667 | C42: 0.003696857671
A43: 629.5 | B43: 0.002666666667 | C43: 0.003696857671
A44: 629 | B44: 0.002666666667 | C44: 0.003696857671
A45: 628.5 | B45: 0.002666666667 | C45: 0.003696857671
A46: 628 | B46: 0.003 | C46: 0.00415896488
A47: 627.5 | B47: 0.003 | C47: 0.00415896488
A48: 627 | B48: 0.003 | C48: 0.00415896488
A49: 626.5 | B49: 0.003333333333 | C49: 0.004621072089
A50: 626 | B50: 0.003333333333 | C50: 0.004621072089
A51: 625.5 | B51: 0.003333333333 | C51: 0.004621072089
A52: 625 | B52: 0.003333333333 | C52: 0.004621072089
A53: 624.5 | B53: 0.003333333333 | C53: 0.004621072089
A54: 624 | B54: 0.003333333333 | C54: 0.004621072089
A55: 623.5 | B55: 0.003333333333 | C55: 0.004621072089
A56: 623 | B56: 0.003333333333 | C56: 0.004621072089
A57: 622.5 | B57: 0.003333333333 | C57: 0.004621072089
A58: 622 | B58: 0.003666666667 | C58: 0.005083179298
A59: 621.5 | B59: 0.003666666667 | C59: 0.005083179298
A60: 621 | B60: 0.003666666667 | C60: 0.005083179298
A61: 620.5 | B61: 0.003666666667 | C61: 0.005083179298
A62: 620 | B62: 0.003666666667 | C62: 0.005083179298
A63: 619.5 | B63: 0.003666666667 | C63: 0.005083179298
A64: 619 | B64: 0.003666666667 | C64: 0.005083179298
A65: 618.5 | B65: 0.003666666667 | C65: 0.005083179298
A66: 618 | B66: 0.003666666667 | C66: 0.005083179298
A67: 617.5 | B67: 0.003666666667 | C67: =B67/MAX(B$2:B$602) -> 0.005083179298
A68: 617 | B68: 0.003666666667 | C68: 0.005083179298
A69: 616.5 | B69: 0.003666666667 | C69: 0.005083179298
A70: 616 | B70: 0.003666666667 | C70: 0.005083179298
A71: 615.5 | B71: 0.003666666667 | C71: 0.005083179298
A72: 615 | B72: 0.003666666667 | C72: 0.005083179298
A73: 614.5 | B73: 0.003666666667 | C73: 0.005083179298
A74: 614 | B74: 0.003666666667 | C74: 0.005083179298
A75: 613.5 | B75: 0.003666666667 | C75: 0.005083179298
A76: 613 | B76: 0.003666666667 | C76: 0.005083179298
A77: 612.5 | B77: 0.003666666667 | C77: 0.005083179298
A78: 612 | B78: 0.004 | C78: 0.005545286506
A79: 611.5 | B79: 0.004333333333 | C79: 0.006007393715
A80: 611 | B80: 0.004333333333 | C80: 0.006007393715
A81: 610.5 | B81: 0.004333333333 | C81: 0.006007393715
A82: 610 | B82: 0.004666666667 | C82: 0.006469500924
A83: 609.5 | B83: 0.004666666667 | C83: 0.006469500924
A84: 609 | B84: 0.004666666667 | C84: 0.006469500924
A85: 608.5 | B85: 0.004666666667 | C85: 0.006469500924
A86: 608 | B86: 0.004666666667 | C86: 0.006469500924
A87: 607.5 | B87: 0.004666666667 | C87: 0.006469500924
A88: 607 | B88: 0.004666666667 | C88: 0.006469500924
A89: 606.5 | B89: 0.004666666667 | C89: 0.006469500924
A90: 606 | B90: 0.005 | C90: 0.006931608133
A91: 605.5 | B91: 0.005333333333 | C91: 0.007393715342
A92: 605 | B92: 0.005333333333 | C92: 0.007393715342
A93: 604.5 | B93: 0.005666666667 | C93: 0.007855822551
A94: 604 | B94: 0.005666666667 | C94: 0.007855822551
A95: 603.5 | B95: 0.005666666667 | C95: 0.007855822551
A96: 603 | B96: 0.005666666667 | C96: 0.007855822551
A97: 602.5 | B97: 0.006 | C97: 0.00831792976
A98: 602 | B98: 0.006333333333 | C98: 0.008780036969
A99: 601.5 | B99: 0.006666666667 | C99: 0.009242144177
A100: 601 | B100: 0.006666666667 | C100: 0.009242144177
A101: 600.5 | B101: 0.007 | C101: 0.009704251386
A102: 600 | B102: 0.007333333333 | C102: 0.0101663586
A103: 599.5 | B103: 0.007666666667 | C103: 0.0106284658
A104: 599 | B104: 0.008 | C104: 0.01109057301
A105: 598.5 | B105: 0.008333333333 | C105: 0.01155268022
A106: 598 | B106: 0.008666666667 | C106: 0.01201478743
A107: 597.5 | B107: 0.009 | C107: 0.01247689464
A108: 597 | B108: 0.009666666667 | C108: 0.01340110906
A109: 596.5 | B109: 0.01 | C109: 0.01386321627
A110: 596 | B110: 0.011 | C110: 0.01524953789
A111: 595.5 | B111: 0.01133333333 | C111: 0.0157116451
A112: 595 | B112: 0.012 | C112: 0.01663585952
A113: 594.5 | B113: 0.013 | C113: 0.01802218115
A114: 594 | B114: 0.01333333333 | C114: 0.01848428835
A115: 593.5 | B115: 0.01433333333 | C115: 0.01987060998
A116: 593 | B116: 0.01533333333 | C116: 0.02125693161
A117: 592.5 | B117: 0.01633333333 | C117: 0.02264325323
A118: 592 | B118: 0.01766666667 | C118: 0.02449168207
A119: 591.5 | B119: 0.019 | C119: 0.02634011091
A120: 591 | B120: 0.02 | C120: 0.02772643253
A121: 590.5 | B121: 0.02166666667 | C121: 0.03003696858
A122: 590 | B122: 0.023 | C122: 0.03188539741
A123: 589.5 | B123: 0.025 | C123: 0.03465804067
A124: 589 | B124: 0.027 | C124: 0.03743068392
A125: 588.5 | B125: 0.02866666667 | C125: 0.03974121996
A126: 588 | B126: 0.031 | C126: 0.04297597043
A127: 587.5 | B127: 0.033 | C127: 0.04574861368
A128: 587 | B128: 0.03566666667 | C128: 0.04944547135
A129: 586.5 | B129: 0.038 | C129: 0.05268022181
A130: 586 | B130: 0.04066666667 | C130: 0.05637707948
A131: 585.5 | B131: 0.04366666667 | C131: =B131/MAX(B$2:B$602) -> 0.06053604436
A132: 585 | B132: 0.04666666667 | C132: 0.06469500924
A133: 584.5 | B133: 0.05 | C133: 0.06931608133
A134: 584 | B134: 0.053 | C134: 0.07347504621
A135: 583.5 | B135: 0.05666666667 | C135: 0.07855822551
A136: 583 | B136: 0.05966666667 | C136: 0.08271719039
A137: 582.5 | B137: 0.063 | C137: 0.08733826248
A138: 582 | B138: 0.06666666667 | C138: 0.09242144177
A139: 581.5 | B139: 0.06966666667 | C139: 0.09658040665
A140: 581 | B140: 0.073 | C140: 0.1012014787
A141: 580.5 | B141: 0.07566666667 | C141: 0.1048983364
A142: 580 | B142: 0.078 | C142: 0.1081330869
A143: 579.5 | B143: 0.08066666667 | C143: 0.1118299445
A144: 579 | B144: 0.08266666667 | C144: 0.1146025878
A145: 578.5 | B145: 0.084 | C145: 0.1164510166
A146: 578 | B146: 0.085 | C146: 0.1178373383
A147: 577.5 | B147: 0.086 | C147: 0.1192236599
A148: 577 | B148: 0.087 | C148: 0.1206099815
A149: 576.5 | B149: 0.087 | C149: 0.1206099815
A150: 576 | B150: 0.087 | C150: 0.1206099815
A151: 575.5 | B151: 0.08633333333 | C151: 0.1196857671
A152: 575 | B152: 0.086 | C152: 0.1192236599
A153: 574.5 | B153: 0.085 | C153: 0.1178373383
A154: 574 | B154: 0.084 | C154: 0.1164510166
A155: 573.5 | B155: 0.082 | C155: 0.1136783734
A156: 573 | B156: 0.081 | C156: 0.1122920518
A157: 572.5 | B157: 0.079 | C157: 0.1095194085
A158: 572 | B158: 0.07733333333 | C158: 0.1072088725
A159: 571.5 | B159: 0.076 | C159: 0.1053604436
A160: 571 | B160: 0.074 | C160: 0.1025878004
A161: 570.5 | B161: 0.072 | C161: 0.09981515712
A162: 570 | B162: 0.07033333333 | C162: 0.09750462107
A163: 569.5 | B163: 0.06833333333 | C163: 0.09473197782
A164: 569 | B164: 0.06666666667 | C164: 0.09242144177
A165: 568.5 | B165: 0.065 | C165: 0.09011090573
A166: 568 | B166: 0.06366666667 | C166: 0.08826247689
A167: 567.5 | B167: 0.062 | C167: 0.08595194085
A168: 567 | B168: 0.06066666667 | C168: 0.08410351201
A169: 566.5 | B169: 0.05933333333 | C169: 0.08225508318
A170: 566 | B170: 0.058 | C170: 0.08040665434
A171: 565.5 | B171: 0.05666666667 | C171: 0.07855822551
A172: 565 | B172: 0.05566666667 | C172: 0.07717190388
A173: 564.5 | B173: 0.05466666667 | C173: 0.07578558226
A174: 564 | B174: 0.054 | C174: 0.07486136784
A175: 563.5 | B175: 0.053 | C175: 0.07347504621
A176: 563 | B176: 0.05266666667 | C176: 0.073012939
A177: 562.5 | B177: 0.052 | C177: 0.07208872458
A178: 562 | B178: 0.05166666667 | C178: 0.07162661738
A179: 561.5 | B179: 0.051 | C179: 0.07070240296
A180: 561 | B180: 0.051 | C180: 0.07070240296
A181: 560.5 | B181: 0.051 | C181: 0.07070240296
A182: 560 | B182: 0.051 | C182: 0.07070240296
A183: 559.5 | B183: 0.051 | C183: 0.07070240296
A184: 559 | B184: 0.051 | C184: 0.07070240296
A185: 558.5 | B185: 0.05133333333 | C185: 0.07116451017
A186: 558 | B186: 0.05166666667 | C186: 0.07162661738
A187: 557.5 | B187: 0.052 | C187: 0.07208872458
A188: 557 | B188: 0.05266666667 | C188: 0.073012939
A189: 556.5 | B189: 0.053 | C189: 0.07347504621
A190: 556 | B190: 0.054 | C190: 0.07486136784
A191: 555.5 | B191: 0.05466666667 | C191: 0.07578558226
A192: 555 | B192: 0.05533333333 | C192: 0.07670979667
A193: 554.5 | B193: 0.056 | C193: 0.07763401109
A194: 554 | B194: 0.057 | C194: 0.07902033272
A195: 553.5 | B195: 0.058 | C195: =B195/MAX(B$2:B$602) -> 0.08040665434
A196: 553 | B196: 0.059 | C196: 0.08179297597
A197: 552.5 | B197: 0.06 | C197: 0.0831792976
A198: 552 | B198: 0.06133333333 | C198: 0.08502772643
A199: 551.5 | B199: 0.06266666667 | C199: 0.08687615527
A200: 551 | B200: 0.064 | C200: 0.0887245841
... 402 more rows

Sheet Temporary (hidden)
A1: ='Hb reference spectrum'!A1 -> Wavelength (nm) | B1: Input spectrum | C1: Residuum | D1: 2nd deriv | E1: Squares | G1: Sum squares | H1: Hb | I1: Bilirubin
A2: ='Hb reference spectrum'!A2 -> 650 | B2: 0.006 | C2: =B2-$H$2*'Hb reference spectrum'!C2 -> 0.003021531212 | E2: =D2^2 -> 0 | G2: =IF(OR(B602< B402,B602>0.5),SUM(E72:E258),SUM(E72:E542))*1000000000 -> 111.4102338 | H2: 0.805675807 | I2: =(AVERAGE(C379:C385)-4.01*C2) -> 0.9007164547
A3: ='Hb reference spectrum'!A3 -> 649.5 | B3: 0.006 | C3: =B3-$H$2*'Hb reference spectrum'!C3 -> 0.003021531212 | E3: 0
A4: ='Hb reference spectrum'!A4 -> 649 | B4: 0.006 | C4: =B4-$H$2*'Hb reference spectrum'!C4 -> 0.003021531212 | E4: 0 | G4: Solver
A5: ='Hb reference spectrum'!A5 -> 648.5 | B5: 0.006 | C5: =B5-$H$2*'Hb reference spectrum'!C5 -> 0.003021531212 | E5: 0 | G5: =MIN($G$2) -> 111.4102338
A6: ='Hb reference spectrum'!A6 -> 648 | B6: 0.006 | C6: =B6-$H$2*'Hb reference spectrum'!C6 -> 0.003021531212 | E6: 0 | G6: =COUNT($H$2) -> 1
A7: ='Hb reference spectrum'!A7 -> 647.5 | B7: 0.006 | C7: =B7-$H$2*'Hb reference spectrum'!C7 -> 0.003021531212 | E7: 0 | G7: ={32767;32767;0.0001;0.01;FALSE;FALSE;FALSE;1;2;1;0.0001;TRUE} -> 32767
A8: ='Hb reference spectrum'!A8 -> 647 | B8: 0.006 | C8: =B8-$H$2*'Hb reference spectrum'!C8 -> 0.003021531212 | E8: 0 | G8: ={0;0;1;100;0;FALSE;FALSE;0.075;0;0;FALSE;30} -> 0
A9: ='Hb reference spectrum'!A9 -> 646.5 | B9: 0.006 | C9: =B9-$H$2*'Hb reference spectrum'!C9 -> 0.003021531212 | E9: 0
A10: ='Hb reference spectrum'!A10 -> 646 | B10: 0.006 | C10: =B10-$H$2*'Hb reference spectrum'!C10 -> 0.003021531212 | E10: 0
A11: ='Hb reference spectrum'!A11 -> 645.5 | B11: 0.006 | C11: =B11-$H$2*'Hb reference spectrum'!C11 -> 0.003021531212 | E11: 0
A12: ='Hb reference spectrum'!A12 -> 645 | B12: 0.006 | C12: =B12-$H$2*'Hb reference spectrum'!C12 -> 0.003021531212 | E12: 0
A13: ='Hb reference spectrum'!A13 -> 644.5 | B13: 0.006 | C13: =B13-$H$2*'Hb reference spectrum'!C13 -> 0.003021531212 | E13: 0
A14: ='Hb reference spectrum'!A14 -> 644 | B14: 0.006 | C14: =B14-$H$2*'Hb reference spectrum'!C14 -> 0.003021531212 | E14: 0
A15: ='Hb reference spectrum'!A15 -> 643.5 | B15: 0.006 | C15: =B15-$H$2*'Hb reference spectrum'!C15 -> 0.003021531212 | E15: 0
A16: ='Hb reference spectrum'!A16 -> 643 | B16: 0.006 | C16: =B16-$H$2*'Hb reference spectrum'!C16 -> 0.003021531212 | D16: =SUMPRODUCT(C2:C30,{126;99;74;51;30;11;-6;-21;-34;-45;-54;-61;-66;-69;-70;-69;-66;-61;-54;-45;-34;-21;-6;11;30;51;74;99;126})/56637 -> 6.797676431e-06 | E16: 4.620840486e-11
A17: ='Hb reference spectrum'!A17 -> 642.5 | B17: 0.006 | C17: =B17-$H$2*'Hb reference spectrum'!C17 -> 0.003021531212 | D17: =SUMPRODUCT(C3:C31,{126;99;74;51;30;11;-6;-21;-34;-45;-54;-61;-66;-69;-70;-69;-66;-61;-54;-45;-34;-21;-6;11;30;51;74;99;126})/56637 -> 6.42689408e-06 | E17: 4.130496751e-11
A18: ='Hb reference spectrum'!A18 -> 642 | B18: 0.006 | C18: =B18-$H$2*'Hb reference spectrum'!C18 -> 0.003021531212 | D18: =SUMPRODUCT(C4:C32,{126;99;74;51;30;11;-6;-21;-34;-45;-54;-61;-66;-69;-70;-69;-66;-61;-54;-45;-34;-21;-6;11;30;51;74;99;126})/56637 -> 5.826579798e-06 | E18: 3.394903214e-11
A19: ='Hb reference spectrum'!A19 -> 641.5 | B19: 0.006 | C19: =B19-$H$2*'Hb reference spectrum'!C19 -> 0.003021531212 | D19: =SUMPRODUCT(C5:C33,{126;99;74;51;30;11;-6;-21;-34;-45;-54;-61;-66;-69;-70;-69;-66;-61;-54;-45;-34;-21;-6;11;30;51;74;99;126})/56637 -> 5.032046189e-06 | E19: 2.532148885e-11
A20: ='Hb reference spectrum'!A20 -> 641 | B20: 0.006 | C20: =B20-$H$2*'Hb reference spectrum'!C20 -> 0.003021531212 | D20: =SUMPRODUCT(C6:C34,{126;99;74;51;30;11;-6;-21;-34;-45;-54;-61;-66;-69;-70;-69;-66;-61;-54;-45;-34;-21;-6;11;30;51;74;99;126})/56637 -> 4.078605858e-06 | E20: 1.663502575e-11
A21: ='Hb reference spectrum'!A21 -> 640.5 | B21: 0.006 | C21: =B21-$H$2*'Hb reference spectrum'!C21 -> 0.003021531212 | D21: =SUMPRODUCT(C7:C35,{126;99;74;51;30;11;-6;-21;-34;-45;-54;-61;-66;-69;-70;-69;-66;-61;-54;-45;-34;-21;-6;11;30;51;74;99;126})/56637 -> 3.001571411e-06 | E21: 9.009430935e-12
A22: ='Hb reference spectrum'!A22 -> 640 | B22: 0.006 | C22: =B22-$H$2*'Hb reference spectrum'!C22 -> 0.003021531212 | D22: =SUMPRODUCT(C8:C36,{126;99;74;51;30;11;-6;-21;-34;-45;-54;-61;-66;-69;-70;-69;-66;-61;-54;-45;-34;-21;-6;11;30;51;74;99;126})/56637 -> 1.836255451e-06 | E22: 3.371834083e-12
A23: ='Hb reference spectrum'!A23 -> 639.5 | B23: 0.006 | C23: =B23-$H$2*'Hb reference spectrum'!C23 -> 0.003021531212 | D23: =SUMPRODUCT(C9:C37,{126;99;74;51;30;11;-6;-21;-34;-45;-54;-61;-66;-69;-70;-69;-66;-61;-54;-45;-34;-21;-6;11;30;51;74;99;126})/56637 -> 6.179705846e-07 | E23: 3.818876434e-13
A24: ='Hb reference spectrum'!A24 -> 639 | B24: 0.007 | C24: =B24-$H$2*'Hb reference spectrum'!C24 -> 0.004021531212 | D24: =SUMPRODUCT(C10:C38,{126;99;74;51;30;11;-6;-21;-34;-45;-54;-61;-66;-69;-70;-69;-66;-61;-54;-45;-34;-21;-6;11;30;51;74;99;126})/56637 -> -6.179705846e-07 | E24: 3.818876434e-13
A25: ='Hb reference spectrum'!A25 -> 638.5 | B25: 0.007 | C25: =B25-$H$2*'Hb reference spectrum'!C25 -> 0.004021531212 | D25: =SUMPRODUCT(C11:C39,{126;99;74;51;30;11;-6;-21;-34;-45;-54;-61;-66;-69;-70;-69;-66;-61;-54;-45;-34;-21;-6;11;30;51;74;99;126})/56637 -> -1.836255451e-06 | E25: 3.371834083e-12
A26: ='Hb reference spectrum'!A26 -> 638 | B26: 0.007 | C26: =B26-$H$2*'Hb reference spectrum'!C26 -> 0.004021531212 | D26: =SUMPRODUCT(C12:C40,{126;99;74;51;30;11;-6;-21;-34;-45;-54;-61;-66;-69;-70;-69;-66;-61;-54;-45;-34;-21;-6;11;30;51;74;99;126})/56637 -> -3.001571411e-06 | E26: 9.009430935e-12
A27: ='Hb reference spectrum'!A27 -> 637.5 | B27: 0.007 | C27: =B27-$H$2*'Hb reference spectrum'!C27 -> 0.004021531212 | D27: =SUMPRODUCT(C13:C41,{126;99;74;51;30;11;-6;-21;-34;-45;-54;-61;-66;-69;-70;-69;-66;-61;-54;-45;-34;-21;-6;11;30;51;74;99;126})/56637 -> -4.078605858e-06 | E27: 1.663502575e-11
A28: ='Hb reference spectrum'!A28 -> 637 | B28: 0.007 | C28: =B28-$H$2*'Hb reference spectrum'!C28 -> 0.004021531212 | D28: =SUMPRODUCT(C14:C42,{126;99;74;51;30;11;-6;-21;-34;-45;-54;-61;-66;-69;-70;-69;-66;-61;-54;-45;-34;-21;-6;11;30;51;74;99;126})/56637 -> -5.032046189e-06 | E28: 2.532148885e-11
A29: ='Hb reference spectrum'!A29 -> 636.5 | B29: 0.007 | C29: =B29-$H$2*'Hb reference spectrum'!C29 -> 0.004021531212 | D29: =SUMPRODUCT(C15:C43,{126;99;74;51;30;11;-6;-21;-34;-45;-54;-61;-66;-69;-70;-69;-66;-61;-54;-45;-34;-21;-6;11;30;51;74;99;126})/56637 -> -5.826579798e-06 | E29: 3.394903214e-11
A30: ='Hb reference spectrum'!A30 -> 636 | B30: 0.007 | C30: =B30-$H$2*'Hb reference spectrum'!C30 -> 0.004021531212 | D30: =SUMPRODUCT(C16:C44,{126;99;74;51;30;11;-6;-21;-34;-45;-54;-61;-66;-69;-70;-69;-66;-61;-54;-45;-34;-21;-6;11;30;51;74;99;126})/56637 -> -6.42689408e-06 | E30: 4.130496751e-11
A31: ='Hb reference spectrum'!A31 -> 635.5 | B31: 0.007 | C31: =B31-$H$2*'Hb reference spectrum'!C31 -> 0.004021531212 | D31: =SUMPRODUCT(C17:C45,{126;99;74;51;30;11;-6;-21;-34;-45;-54;-61;-66;-69;-70;-69;-66;-61;-54;-45;-34;-21;-6;11;30;51;74;99;126})/56637 -> -6.797676431e-06 | E31: 4.620840486e-11
A32: ='Hb reference spectrum'!A32 -> 635 | B32: 0.007 | C32: =B32-$H$2*'Hb reference spectrum'!C32 -> 0.004021531212 | D32: =SUMPRODUCT(C18:C46,{126;99;74;51;30;11;-6;-21;-34;-45;-54;-61;-66;-69;-70;-69;-66;-61;-54;-45;-34;-21;-6;11;30;51;74;99;126})/56637 -> -7.731886989e-06 | E32: 5.978207641e-11
A33: ='Hb reference spectrum'!A33 -> 634.5 | B33: 0.007 | C33: =B33-$H$2*'Hb reference spectrum'!C33 -> 0.004021531212 | D33: =SUMPRODUCT(C19:C47,{126;99;74;51;30;11;-6;-21;-34;-45;-54;-61;-66;-69;-70;-69;-66;-61;-54;-45;-34;-21;-6;11;30;51;74;99;126})/56637 -> -8.18845339e-06 | E33: 6.705076892e-11
A34: ='Hb reference spectrum'!A34 -> 634 | B34: 0.007 | C34: =B34-$H$2*'Hb reference spectrum'!C34 -> 0.004021531212 | D34: =SUMPRODUCT(C20:C48,{126;99;74;51;30;11;-6;-21;-34;-45;-54;-61;-66;-69;-70;-69;-66;-61;-54;-45;-34;-21;-6;11;30;51;74;99;126})/56637 -> -8.145210215e-06 | E34: 6.634444944e-11
A35: ='Hb reference spectrum'!A35 -> 633.5 | B35: 0.007 | C35: =B35-$H$2*'Hb reference spectrum'!C35 -> 0.004021531212 | D35: =SUMPRODUCT(C21:C49,{126;99;74;51;30;11;-6;-21;-34;-45;-54;-61;-66;-69;-70;-69;-66;-61;-54;-45;-34;-21;-6;11;30;51;74;99;126})/56637 -> -6.183570685e-06 | E35: 3.823654641e-11
A36: ='Hb reference spectrum'!A36 -> 633 | B36: 0.007 | C36: =B36-$H$2*'Hb reference spectrum'!C36 -> 0.004021531212 | D36: =SUMPRODUCT(C22:C50,{126;99;74;51;30;11;-6;-21;-34;-45;-54;-61;-66;-69;-70;-69;-66;-61;-54;-45;-34;-21;-6;11;30;51;74;99;126})/56637 -> -3.97702389e-06 | E36: 1.581671902e-11
A37: ='Hb reference spectrum'!A37 -> 632.5 | B37: 0.007 | C37: =B37-$H$2*'Hb reference spectrum'!C37 -> 0.004021531212 | D37: =SUMPRODUCT(C23:C51,{126;99;74;51;30;11;-6;-21;-34;-45;-54;-61;-66;-69;-70;-69;-66;-61;-54;-45;-34;-21;-6;11;30;51;74;99;126})/56637 -> -1.481238994e-06 | E37: 2.194068959e-12
A38: ='Hb reference spectrum'!A38 -> 632 | B38: 0.007 | C38: =B38-$H$2*'Hb reference spectrum'!C38 -> 0.004021531212 | D38: =SUMPRODUCT(C24:C52,{126;99;74;51;30;11;-6;-21;-34;-45;-54;-61;-66;-69;-70;-69;-66;-61;-54;-45;-34;-21;-6;11;30;51;74;99;126})/56637 -> 1.348114839e-06 | E38: 1.817413619e-12
A39: ='Hb reference spectrum'!A39 -> 631.5 | B39: 0.007 | C39: =B39-$H$2*'Hb reference spectrum'!C39 -> 0.004021531212 | D39: =SUMPRODUCT(C25:C53,{126;99;74;51;30;11;-6;-21;-34;-45;-54;-61;-66;-69;-70;-69;-66;-61;-54;-45;-34;-21;-6;11;30;51;74;99;126})/56637 -> 1.818641573e-06 | E39: 3.30745717e-12
A40: ='Hb reference spectrum'!A40 -> 631 | B40: 0.007 | C40: =B40-$H$2*'Hb reference spectrum'!C40 -> 0.004021531212 | D40: =SUMPRODUCT(C26:C54,{126;99;74;51;30;11;-6;-21;-34;-45;-54;-61;-66;-69;-70;-69;-66;-61;-54;-45;-34;-21;-6;11;30;51;74;99;126})/56637 -> 2.164053543e-06 | E40: 4.683127737e-12
A41: ='Hb reference spectrum'!A41 -> 630.5 | B41: 0.007 | C41: =B41-$H$2*'Hb reference spectrum'!C41 -> 0.004021531212 | D41: =SUMPRODUCT(C27:C55,{126;99;74;51;30;11;-6;-21;-34;-45;-54;-61;-66;-69;-70;-69;-66;-61;-54;-45;-34;-21;-6;11;30;51;74;99;126})/56637 -> 2.393368982e-06 | E41: 5.728215085e-12
A42: ='Hb reference spectrum'!A42 -> 630 | B42: 0.007 | C42: =B42-$H$2*'Hb reference spectrum'!C42 -> 0.004021531212 | D42: =SUMPRODUCT(C28:C56,{126;99;74;51;30;11;-6;-21;-34;-45;-54;-61;-66;-69;-70;-69;-66;-61;-54;-45;-34;-21;-6;11;30;51;74;99;126})/56637 -> 2.515606122e-06 | E42: 6.328274161e-12
A43: ='Hb reference spectrum'!A43 -> 629.5 | B43: 0.007 | C43: =B43-$H$2*'Hb reference spectrum'!C43 -> 0.004021531212 | D43: =SUMPRODUCT(C29:C57,{126;99;74;51;30;11;-6;-21;-34;-45;-54;-61;-66;-69;-70;-69;-66;-61;-54;-45;-34;-21;-6;11;30;51;74;99;126})/56637 -> 2.539783194e-06 | E43: 6.450498674e-12
A44: ='Hb reference spectrum'!A44 -> 629 | B44: 0.007 | C44: =B44-$H$2*'Hb reference spectrum'!C44 -> 0.004021531212 | D44: =SUMPRODUCT(C30:C58,{126;99;74;51;30;11;-6;-21;-34;-45;-54;-61;-66;-69;-70;-69;-66;-61;-54;-45;-34;-21;-6;11;30;51;74;99;126})/56637 -> 1.646645687e-06 | E44: 2.71144202e-12
A45: ='Hb reference spectrum'!A45 -> 628.5 | B45: 0.007 | C45: =B45-$H$2*'Hb reference spectrum'!C45 -> 0.004021531212 | D45: =SUMPRODUCT(C31:C59,{126;99;74;51;30;11;-6;-21;-34;-45;-54;-61;-66;-69;-70;-69;-66;-61;-54;-45;-34;-21;-6;11;30;51;74;99;126})/56637 -> 8.509715939e-07 | E45: 7.241526536e-13
A46: ='Hb reference spectrum'!A46 -> 628 | B46: 0.007 | C46: =B46-$H$2*'Hb reference spectrum'!C46 -> 0.003649222614 | D46: =SUMPRODUCT(C32:C60,{126;99;74;51;30;11;-6;-21;-34;-45;-54;-61;-66;-69;-70;-69;-66;-61;-54;-45;-34;-21;-6;11;30;51;74;99;126})/56637 -> 1.486319592e-07 | E46: 2.209145931e-14
A47: ='Hb reference spectrum'!A47 -> 627.5 | B47: 0.007 | C47: =B47-$H$2*'Hb reference spectrum'!C47 -> 0.003649222614 | D47: =SUMPRODUCT(C33:C61,{126;99;74;51;30;11;-6;-21;-34;-45;-54;-61;-66;-69;-70;-69;-66;-61;-54;-45;-34;-21;-6;11;30;51;74;99;126})/56637 -> -4.645021709e-07 | E47: 2.157622668e-13
A48: ='Hb reference spectrum'!A48 -> 627 | B48: 0.007 | C48: =B48-$H$2*'Hb reference spectrum'!C48 -> 0.003649222614 | D48: =SUMPRODUCT(C34:C62,{126;99;74;51;30;11;-6;-21;-34;-45;-54;-61;-66;-69;-70;-69;-66;-61;-54;-45;-34;-21;-6;11;30;51;74;99;126})/56637 -> -9.92559751e-07 | E48: 9.851748594e-13
A49: ='Hb reference spectrum'!A49 -> 626.5 | B49: 0.008 | C49: =B49-$H$2*'Hb reference spectrum'!C49 -> 0.004276914016 | D49: =SUMPRODUCT(C35:C63,{126;99;74;51;30;11;-6;-21;-34;-45;-54;-61;-66;-69;-70;-69;-66;-61;-54;-45;-34;-21;-6;11;30;51;74;99;126})/56637 -> -1.439669735e-06 | E49: 2.072648947e-12
A50: ='Hb reference spectrum'!A50 -> 626 | B50: 0.008 | C50: =B50-$H$2*'Hb reference spectrum'!C50 -> 0.004276914016 | D50: =SUMPRODUCT(C36:C64,{126;99;74;51;30;11;-6;-21;-34;-45;-54;-61;-66;-69;-70;-69;-66;-61;-54;-45;-34;-21;-6;11;30;51;74;99;126})/56637 -> -1.809961079e-06 | E50: 3.275959106e-12
A51: ='Hb reference spectrum'!A51 -> 625.5 | B51: 0.008 | C51: =B51-$H$2*'Hb reference spectrum'!C51 -> 0.004276914016 | D51: =SUMPRODUCT(C37:C65,{126;99;74;51;30;11;-6;-21;-34;-45;-54;-61;-66;-69;-70;-69;-66;-61;-54;-45;-34;-21;-6;11;30;51;74;99;126})/56637 -> -2.107562735e-06 | E51: 4.441820681e-12
A52: ='Hb reference spectrum'!A52 -> 625 | B52: 0.008 | C52: =B52-$H$2*'Hb reference spectrum'!C52 -> 0.004276914016 | D52: =SUMPRODUCT(C38:C66,{126;99;74;51;30;11;-6;-21;-34;-45;-54;-61;-66;-69;-70;-69;-66;-61;-54;-45;-34;-21;-6;11;30;51;74;99;126})/56637 -> -2.336603659e-06 | E52: 5.459716657e-12
A53: ='Hb reference spectrum'!A53 -> 624.5 | B53: 0.008 | C53: =B53-$H$2*'Hb reference spectrum'!C53 -> 0.004276914016 | D53: =SUMPRODUCT(C39:C67,{126;99;74;51;30;11;-6;-21;-34;-45;-54;-61;-66;-69;-70;-69;-66;-61;-54;-45;-34;-21;-6;11;30;51;74;99;126})/56637 -> -2.501212804e-06 | E53: 6.256065493e-12
A54: ='Hb reference spectrum'!A54 -> 624 | B54: 0.008 | C54: =B54-$H$2*'Hb reference spectrum'!C54 -> 0.004276914016 | D54: =SUMPRODUCT(C40:C68,{126;99;74;51;30;11;-6;-21;-34;-45;-54;-61;-66;-69;-70;-69;-66;-61;-54;-45;-34;-21;-6;11;30;51;74;99;126})/56637 -> -2.605519126e-06 | E54: 6.788729918e-12
A55: ='Hb reference spectrum'!A55 -> 623.5 | B55: 0.008 | C55: =B55-$H$2*'Hb reference spectrum'!C55 -> 0.004276914016 | D55: =SUMPRODUCT(C41:C69,{126;99;74;51;30;11;-6;-21;-34;-45;-54;-61;-66;-69;-70;-69;-66;-61;-54;-45;-34;-21;-6;11;30;51;74;99;126})/56637 -> -2.653651579e-06 | E55: 7.041866704e-12
A56: ='Hb reference spectrum'!A56 -> 623 | B56: 0.008 | C56: =B56-$H$2*'Hb reference spectrum'!C56 -> 0.004276914016 | D56: =SUMPRODUCT(C42:C70,{126;99;74;51;30;11;-6;-21;-34;-45;-54;-61;-66;-69;-70;-69;-66;-61;-54;-45;-34;-21;-6;11;30;51;74;99;126})/56637 -> -4.250450127e-07 | E56: 1.806632628e-13
A57: ='Hb reference spectrum'!A57 -> 622.5 | B57: 0.008 | C57: =B57-$H$2*'Hb reference spectrum'!C57 -> 0.004276914016 | D57: =SUMPRODUCT(C43:C71,{126;99;74;51;30;11;-6;-21;-34;-45;-54;-61;-66;-69;-70;-69;-66;-61;-54;-45;-34;-21;-6;11;30;51;74;99;126})/56637 -> 1.374757349e-06 | E57: 1.889957769e-12
A58: ='Hb reference spectrum'!A58 -> 622 | B58: 0.008 | C58: =B58-$H$2*'Hb reference spectrum'!C58 -> 0.003904605417 | D58: =SUMPRODUCT(C44:C72,{126;99;74;51;30;11;-6;-21;-34;-45;-54;-61;-66;-69;-70;-69;-66;-61;-54;-45;-34;-21;-6;11;30;51;74;99;126})/56637 -> 2.776939156e-06 | E58: 7.711391079e-12
A59: ='Hb reference spectrum'!A59 -> 621.5 | B59: 0.008 | C59: =B59-$H$2*'Hb reference spectrum'!C59 -> 0.003904605417 | D59: =SUMPRODUCT(C45:C73,{126;99;74;51;30;11;-6;-21;-34;-45;-54;-61;-66;-69;-70;-69;-66;-61;-54;-45;-34;-21;-6;11;30;51;74;99;126})/56637 -> 3.81268406e-06 | E59: 1.453655974e-11
A60: ='Hb reference spectrum'!A60 -> 621 | B60: 0.008 | C60: =B60-$H$2*'Hb reference spectrum'!C60 -> 0.003904605417 | D60: =SUMPRODUCT(C46:C74,{126;99;74;51;30;11;-6;-21;-34;-45;-54;-61;-66;-69;-70;-69;-66;-61;-54;-45;-34;-21;-6;11;30;51;74;99;126})/56637 -> 4.51317571e-06 | E60: 2.036875499e-11
A61: ='Hb reference spectrum'!A61 -> 620.5 | B61: 0.008 | C61: =B61-$H$2*'Hb reference spectrum'!C61 -> 0.003904605417 | D61: =SUMPRODUCT(C47:C75,{126;99;74;51;30;11;-6;-21;-34;-45;-54;-61;-66;-69;-70;-69;-66;-61;-54;-45;-34;-21;-6;11;30;51;74;99;126})/56637 -> 5.928504703e-06 | E61: 3.514716802e-11
A62: ='Hb reference spectrum'!A62 -> 620 | B62: 0.008 | C62: =B62-$H$2*'Hb reference spectrum'!C62 -> 0.003904605417 | D62: =SUMPRODUCT(C48:C76,{126;99;74;51;30;11;-6;-21;-34;-45;-54;-61;-66;-69;-70;-69;-66;-61;-54;-45;-34;-21;-6;11;30;51;74;99;126})/56637 -> 7.274729134e-06 | E62: 5.292168397e-11
A63: ='Hb reference spectrum'!A63 -> 619.5 | B63: 0.008 | C63: =B63-$H$2*'Hb reference spectrum'!C63 -> 0.003904605417 | D63: =SUMPRODUCT(C49:C77,{126;99;74;51;30;11;-6;-21;-34;-45;-54;-61;-66;-69;-70;-69;-66;-61;-54;-45;-34;-21;-6;11;30;51;74;99;126})/56637 -> 8.596179838e-06 | E63: 7.389430781e-11
A64: ='Hb reference spectrum'!A64 -> 619 | B64: 0.008 | C64: =B64-$H$2*'Hb reference spectrum'!C64 -> 0.003904605417 | D64: =SUMPRODUCT(C50:C78,{126;99;74;51;30;11;-6;-21;-34;-45;-54;-61;-66;-69;-70;-69;-66;-61;-54;-45;-34;-21;-6;11;30;51;74;99;126})/56637 -> 7.391094981e-06 | E64: 5.462828502e-11
A65: ='Hb reference spectrum'!A65 -> 618.5 | B65: 0.008 | C65: =B65-$H$2*'Hb reference spectrum'!C65 -> 0.003904605417 | D65: =SUMPRODUCT(C51:C79,{126;99;74;51;30;11;-6;-21;-34;-45;-54;-61;-66;-69;-70;-69;-66;-61;-54;-45;-34;-21;-6;11;30;51;74;99;126})/56637 -> 5.255548358e-06 | E65: 2.762078854e-11
A66: ='Hb reference spectrum'!A66 -> 618 | B66: 0.008 | C66: =B66-$H$2*'Hb reference spectrum'!C66 -> 0.003904605417 | D66: =SUMPRODUCT(C52:C80,{126;99;74;51;30;11;-6;-21;-34;-45;-54;-61;-66;-69;-70;-69;-66;-61;-54;-45;-34;-21;-6;11;30;51;74;99;126})/56637 -> 3.204317962e-06 | E66: =D66^2 -> 1.02676536e-11
A67: ='Hb reference spectrum'!A67 -> 617.5 | B67: 0.008 | C67: =B67-$H$2*'Hb reference spectrum'!C67 -> 0.003904605417 | D67: =SUMPRODUCT(C53:C81,{126;99;74;51;30;11;-6;-21;-34;-45;-54;-61;-66;-69;-70;-69;-66;-61;-54;-45;-34;-21;-6;11;30;51;74;99;126})/56637 -> 1.233274838e-06 | E67: 1.520966827e-12
A68: ='Hb reference spectrum'!A68 -> 617 | B68: 0.008 | C68: =B68-$H$2*'Hb reference spectrum'!C68 -> 0.003904605417 | D68: =SUMPRODUCT(C54:C82,{126;99;74;51;30;11;-6;-21;-34;-45;-54;-61;-66;-69;-70;-69;-66;-61;-54;-45;-34;-21;-6;11;30;51;74;99;126})/56637 -> -1.489982711e-06 | E68: 2.22004848e-12
A69: ='Hb reference spectrum'!A69 -> 616.5 | B69: 0.008 | C69: =B69-$H$2*'Hb reference spectrum'!C69 -> 0.003904605417 | D69: =SUMPRODUCT(C55:C83,{126;99;74;51;30;11;-6;-21;-34;-45;-54;-61;-66;-69;-70;-69;-66;-61;-54;-45;-34;-21;-6;11;30;51;74;99;126})/56637 -> -3.96382388e-06 | E69: 1.571189976e-11
A70: ='Hb reference spectrum'!A70 -> 616 | B70: 0.009 | C70: =B70-$H$2*'Hb reference spectrum'!C70 -> 0.004904605417 | D70: =SUMPRODUCT(C56:C84,{126;99;74;51;30;11;-6;-21;-34;-45;-54;-61;-66;-69;-70;-69;-66;-61;-54;-45;-34;-21;-6;11;30;51;74;99;126})/56637 -> -3.980830706e-06 | E70: 1.584701311e-11
A71: ='Hb reference spectrum'!A71 -> 615.5 | B71: 0.009 | C71: =B71-$H$2*'Hb reference spectrum'!C71 -> 0.004904605417 | D71: =SUMPRODUCT(C57:C85,{126;99;74;51;30;11;-6;-21;-34;-45;-54;-61;-66;-69;-70;-69;-66;-61;-54;-45;-34;-21;-6;11;30;51;74;99;126})/56637 -> -4.259693598e-06 | E71: 1.814498955e-11
A72: ='Hb reference spectrum'!A72 -> 615 | B72: 0.009 | C72: =B72-$H$2*'Hb reference spectrum'!C72 -> 0.004904605417 | D72: =SUMPRODUCT(C58:C86,{126;99;74;51;30;11;-6;-21;-34;-45;-54;-61;-66;-69;-70;-69;-66;-61;-54;-45;-34;-21;-6;11;30;51;74;99;126})/56637 -> -4.782376092e-06 | E72: 2.287112109e-11
A73: ='Hb reference spectrum'!A73 -> 614.5 | B73: 0.009 | C73: =B73-$H$2*'Hb reference spectrum'!C73 -> 0.004904605417 | D73: =SUMPRODUCT(C59:C87,{126;99;74;51;30;11;-6;-21;-34;-45;-54;-61;-66;-69;-70;-69;-66;-61;-54;-45;-34;-21;-6;11;30;51;74;99;126})/56637 -> -4.511934778e-06 | E73: 2.035755544e-11
A74: ='Hb reference spectrum'!A74 -> 614 | B74: 0.009 | C74: =B74-$H$2*'Hb reference spectrum'!C74 -> 0.004904605417 | D74: =SUMPRODUCT(C60:C88,{126;99;74;51;30;11;-6;-21;-34;-45;-54;-61;-66;-69;-70;-69;-66;-61;-54;-45;-34;-21;-6;11;30;51;74;99;126})/56637 -> -4.24545875e-06 | E74: 1.802391999e-11
A75: ='Hb reference spectrum'!A75 -> 613.5 | B75: 0.009 | C75: =B75-$H$2*'Hb reference spectrum'!C75 -> 0.004904605417 | D75: =SUMPRODUCT(C61:C89,{126;99;74;51;30;11;-6;-21;-34;-45;-54;-61;-66;-69;-70;-69;-66;-61;-54;-45;-34;-21;-6;11;30;51;74;99;126})/56637 -> -3.951764356e-06 | E75: 1.561644152e-11
A76: ='Hb reference spectrum'!A76 -> 613 | B76: 0.009 | C76: =B76-$H$2*'Hb reference spectrum'!C76 -> 0.004904605417 | D76: =SUMPRODUCT(C62:C90,{126;99;74;51;30;11;-6;-21;-34;-45;-54;-61;-66;-69;-70;-69;-66;-61;-54;-45;-34;-21;-6;11;30;51;74;99;126})/56637 -> -4.42794069e-06 | E76: 1.960665875e-11
A77: ='Hb reference spectrum'!A77 -> 612.5 | B77: 0.009 | C77: =B77-$H$2*'Hb reference spectrum'!C77 -> 0.004904605417 | D77: =SUMPRODUCT(C63:C91,{126;99;74;51;30;11;-6;-21;-34;-45;-54;-61;-66;-69;-70;-69;-66;-61;-54;-45;-34;-21;-6;11;30;51;74;99;126})/56637 -> -5.465317086e-06 | E77: 2.986969085e-11
A78: ='Hb reference spectrum'!A78 -> 612 | B78: 0.009 | C78: =B78-$H$2*'Hb reference spectrum'!C78 -> 0.004532296819 | D78: =SUMPRODUCT(C64:C92,{126;99;74;51;30;11;-6;-21;-34;-45;-54;-61;-66;-69;-70;-69;-66;-61;-54;-45;-34;-21;-6;11;30;51;74;99;126})/56637 -> -3.815403214e-06 | E78: 1.455730168e-11
A79: ='Hb reference spectrum'!A79 -> 611.5 | B79: 0.009 | C79: =B79-$H$2*'Hb reference spectrum'!C79 -> 0.00415998822 | D79: =SUMPRODUCT(C65:C93,{126;99;74;51;30;11;-6;-21;-34;-45;-54;-61;-66;-69;-70;-69;-66;-61;-54;-45;-34;-21;-6;11;30;51;74;99;126})/56637 -> -3.00299681e-06 | E79: 9.017989843e-12
A80: ='Hb reference spectrum'!A80 -> 611 | B80: 0.009 | C80: =B80-$H$2*'Hb reference spectrum'!C80 -> 0.00415998822 | D80: =SUMPRODUCT(C66:C94,{126;99;74;51;30;11;-6;-21;-34;-45;-54;-61;-66;-69;-70;-69;-66;-61;-54;-45;-34;-21;-6;11;30;51;74;99;126})/56637 -> -1.982136232e-06 | E80: 3.928864043e-12
A81: ='Hb reference spectrum'!A81 -> 610.5 | B81: 0.009 | C81: =B81-$H$2*'Hb reference spectrum'!C81 -> 0.00415998822 | D81: =SUMPRODUCT(C67:C95,{126;99;74;51;30;11;-6;-21;-34;-45;-54;-61;-66;-69;-70;-69;-66;-61;-54;-45;-34;-21;-6;11;30;51;74;99;126})/56637 -> -7.257667833e-07 | E81: 5.267374237e-13
A82: ='Hb reference spectrum'!A82 -> 610 | B82: 0.009 | C82: =B82-$H$2*'Hb reference spectrum'!C82 -> 0.003787679622 | D82: =SUMPRODUCT(C68:C96,{126;99;74;51;30;11;-6;-21;-34;-45;-54;-61;-66;-69;-70;-69;-66;-61;-54;-45;-34;-21;-6;11;30;51;74;99;126})/56637 -> 7.931662322e-07 | E82: 6.291126719e-13
A83: ='Hb reference spectrum'!A83 -> 609.5 | B83: 0.009 | C83: =B83-$H$2*'Hb reference spectrum'!C83 -> 0.003787679622 | D83: =SUMPRODUCT(C69:C97,{126;99;74;51;30;11;-6;-21;-34;-45;-54;-61;-66;-69;-70;-69;-66;-61;-54;-45;-34;-21;-6;11;30;51;74;99;126})/56637 -> 3.998138871e-06 | E83: 1.598511443e-11
A84: ='Hb reference spectrum'!A84 -> 609 | B84: 0.01 | C84: =B84-$H$2*'Hb reference spectrum'!C84 -> 0.004787679622 | D84: =SUMPRODUCT(C70:C98,{126;99;74;51;30;11;-6;-21;-34;-45;-54;-61;-66;-69;-70;-69;-66;-61;-54;-45;-34;-21;-6;11;30;51;74;99;126})/56637 -> 6.392278576e-06 | E84: 4.086122539e-11
A85: ='Hb reference spectrum'!A85 -> 608.5 | B85: 0.01 | C85: =B85-$H$2*'Hb reference spectrum'!C85 -> 0.004787679622 | D85: =SUMPRODUCT(C71:C99,{126;99;74;51;30;11;-6;-21;-34;-45;-54;-61;-66;-69;-70;-69;-66;-61;-54;-45;-34;-21;-6;11;30;51;74;99;126})/56637 -> 5.465565603e-06 | E85: 2.987240736e-11
A86: ='Hb reference spectrum'!A86 -> 608 | B86: 0.01 | C86: =B86-$H$2*'Hb reference spectrum'!C86 -> 0.004787679622 | D86: =SUMPRODUCT(C72:C100,{126;99;74;51;30;11;-6;-21;-34;-45;-54;-61;-66;-69;-70;-69;-66;-61;-54;-45;-34;-21;-6;11;30;51;74;99;126})/56637 -> 4.449214141e-06 | E86: 1.979550647e-11
A87: ='Hb reference spectrum'!A87 -> 607.5 | B87: 0.01 | C87: =B87-$H$2*'Hb reference spectrum'!C87 -> 0.004787679622 | D87: =SUMPRODUCT(C73:C101,{126;99;74;51;30;11;-6;-21;-34;-45;-54;-61;-66;-69;-70;-69;-66;-61;-54;-45;-34;-21;-6;11;30;51;74;99;126})/56637 -> 4.727258686e-06 | E87: 2.234697469e-11
A88: ='Hb reference spectrum'!A88 -> 607 | B88: 0.01 | C88: =B88-$H$2*'Hb reference spectrum'!C88 -> 0.004787679622 | D88: =SUMPRODUCT(C74:C102,{126;99;74;51;30;11;-6;-21;-34;-45;-54;-61;-66;-69;-70;-69;-66;-61;-54;-45;-34;-21;-6;11;30;51;74;99;126})/56637 -> 3.763385124e-06 | E88: 1.416306759e-11
A89: ='Hb reference spectrum'!A89 -> 606.5 | B89: 0.01 | C89: =B89-$H$2*'Hb reference spectrum'!C89 -> 0.004787679622 | D89: =SUMPRODUCT(C75:C103,{126;99;74;51;30;11;-6;-21;-34;-45;-54;-61;-66;-69;-70;-69;-66;-61;-54;-45;-34;-21;-6;11;30;51;74;99;126})/56637 -> 1.744859025e-06 | E89: 3.044533016e-12
A90: ='Hb reference spectrum'!A90 -> 606 | B90: 0.01 | C90: =B90-$H$2*'Hb reference spectrum'!C90 -> 0.004415371023 | D90: =SUMPRODUCT(C76:C104,{126;99;74;51;30;11;-6;-21;-34;-45;-54;-61;-66;-69;-70;-69;-66;-61;-54;-45;-34;-21;-6;11;30;51;74;99;126})/56637 -> 1.070492879e-06 | E90: 1.145955003e-12
A91: ='Hb reference spectrum'!A91 -> 605.5 | B91: 0.01 | C91: =B91-$H$2*'Hb reference spectrum'!C91 -> 0.004043062425 | D91: =SUMPRODUCT(C77:C105,{126;99;74;51;30;11;-6;-21;-34;-45;-54;-61;-66;-69;-70;-69;-66;-61;-54;-45;-34;-21;-6;11;30;51;74;99;126})/56637 -> -8.001563848e-07 | E91: 6.402502401e-13
A92: ='Hb reference spectrum'!A92 -> 605 | B92: 0.011 | C92: =B92-$H$2*'Hb reference spectrum'!C92 -> 0.005043062425 | D92: =SUMPRODUCT(C78:C106,{126;99;74;51;30;11;-6;-21;-34;-45;-54;-61;-66;-69;-70;-69;-66;-61;-54;-45;-34;-21;-6;11;30;51;74;99;126})/56637 -> -1.459258044e-06 | E92: 2.129434039e-12
A93: ='Hb reference spectrum'!A93 -> 604.5 | B93: 0.011 | C93: =B93-$H$2*'Hb reference spectrum'!C93 -> 0.004670753826 | D93: =SUMPRODUCT(C79:C107,{126;99;74;51;30;11;-6;-21;-34;-45;-54;-61;-66;-69;-70;-69;-66;-61;-54;-45;-34;-21;-6;11;30;51;74;99;126})/56637 -> -2.419329991e-06 | E93: 5.853157603e-12
A94: ='Hb reference spectrum'!A94 -> 604 | B94: 0.011 | C94: =B94-$H$2*'Hb reference spectrum'!C94 -> 0.004670753826 | D94: =SUMPRODUCT(C80:C108,{126;99;74;51;30;11;-6;-21;-34;-45;-54;-61;-66;-69;-70;-69;-66;-61;-54;-45;-34;-21;-6;11;30;51;74;99;126})/56637 -> -1.888014625e-06 | E94: 3.564599225e-12
A95: ='Hb reference spectrum'!A95 -> 603.5 | B95: 0.011 | C95: =B95-$H$2*'Hb reference spectrum'!C95 -> 0.004670753826 | D95: =SUMPRODUCT(C81:C109,{126;99;74;51;30;11;-6;-21;-34;-45;-54;-61;-66;-69;-70;-69;-66;-61;-54;-45;-34;-21;-6;11;30;51;74;99;126})/56637 -> -2.183937166e-06 | E95: 4.769581543e-12
A96: ='Hb reference spectrum'!A96 -> 603 | B96: 0.011 | C96: =B96-$H$2*'Hb reference spectrum'!C96 -> 0.004670753826 | D96: =SUMPRODUCT(C82:C110,{126;99;74;51;30;11;-6;-21;-34;-45;-54;-61;-66;-69;-70;-69;-66;-61;-54;-45;-34;-21;-6;11;30;51;74;99;126})/56637 -> -2.524628727e-06 | E96: 6.37375021e-12
A97: ='Hb reference spectrum'!A97 -> 602.5 | B97: 0.012 | C97: =B97-$H$2*'Hb reference spectrum'!C97 -> 0.005298445228 | D97: =SUMPRODUCT(C83:C111,{126;99;74;51;30;11;-6;-21;-34;-45;-54;-61;-66;-69;-70;-69;-66;-61;-54;-45;-34;-21;-6;11;30;51;74;99;126})/56637 -> -1.552099258e-07 | E97: 2.409012105e-14
A98: ='Hb reference spectrum'!A98 -> 602 | B98: 0.012 | C98: =B98-$H$2*'Hb reference spectrum'!C98 -> 0.00492613663 | D98: =SUMPRODUCT(C84:C112,{126;99;74;51;30;11;-6;-21;-34;-45;-54;-61;-66;-69;-70;-69;-66;-61;-54;-45;-34;-21;-6;11;30;51;74;99;126})/56637 -> 7.765507943e-07 | E98: 6.030311361e-13
A99: ='Hb reference spectrum'!A99 -> 601.5 | B99: 0.012 | C99: =B99-$H$2*'Hb reference spectrum'!C99 -> 0.004553828031 | D99: =SUMPRODUCT(C85:C113,{126;99;74;51;30;11;-6;-21;-34;-45;-54;-61;-66;-69;-70;-69;-66;-61;-54;-45;-34;-21;-6;11;30;51;74;99;126})/56637 -> -6.598083328e-07 | E99: 4.35347036e-13
A100: ='Hb reference spectrum'!A100 -> 601 | B100: 0.012 | C100: =B100-$H$2*'Hb reference spectrum'!C100 -> 0.004553828031 | D100: =SUMPRODUCT(C86:C114,{126;99;74;51;30;11;-6;-21;-34;-45;-54;-61;-66;-69;-70;-69;-66;-61;-54;-45;-34;-21;-6;11;30;51;74;99;126})/56637 -> -5.340440923e-07 | E100: 2.852030925e-13
A101: ='Hb reference spectrum'!A101 -> 600.5 | B101: 0.013 | C101: =B101-$H$2*'Hb reference spectrum'!C101 -> 0.005181519433 | D101: =SUMPRODUCT(C87:C115,{126;99;74;51;30;11;-6;-21;-34;-45;-54;-61;-66;-69;-70;-69;-66;-61;-54;-45;-34;-21;-6;11;30;51;74;99;126})/56637 -> -8.128013379e-07 | E101: 6.606460148e-13
A102: ='Hb reference spectrum'!A102 -> 600 | B102: 0.013 | C102: =B102-$H$2*'Hb reference spectrum'!C102 -> 0.004809210834 | D102: =SUMPRODUCT(C88:C116,{126;99;74;51;30;11;-6;-21;-34;-45;-54;-61;-66;-69;-70;-69;-66;-61;-54;-45;-34;-21;-6;11;30;51;74;99;126})/56637 -> -1.429039983e-06 | E102: 2.042155274e-12
A103: ='Hb reference spectrum'!A103 -> 599.5 | B103: 0.013 | C103: =B103-$H$2*'Hb reference spectrum'!C103 -> 0.004436902236 | D103: =SUMPRODUCT(C89:C117,{126;99;74;51;30;11;-6;-21;-34;-45;-54;-61;-66;-69;-70;-69;-66;-61;-54;-45;-34;-21;-6;11;30;51;74;99;126})/56637 -> -2.319848897e-06 | E103: 5.381698906e-12
A104: ='Hb reference spectrum'!A104 -> 599 | B104: 0.014 | C104: =B104-$H$2*'Hb reference spectrum'!C104 -> 0.005064593637 | D104: =SUMPRODUCT(C90:C118,{126;99;74;51;30;11;-6;-21;-34;-45;-54;-61;-66;-69;-70;-69;-66;-61;-54;-45;-34;-21;-6;11;30;51;74;99;126})/56637 -> -4.254718646e-06 | E104: 1.810263076e-11
A105: ='Hb reference spectrum'!A105 -> 598.5 | B105: 0.014 | C105: =B105-$H$2*'Hb reference spectrum'!C105 -> 0.004692285039 | D105: =SUMPRODUCT(C91:C119,{126;99;74;51;30;11;-6;-21;-34;-45;-54;-61;-66;-69;-70;-69;-66;-61;-54;-45;-34;-21;-6;11;30;51;74;99;126})/56637 -> -3.757907939e-06 | E105: 1.412187208e-11
A106: ='Hb reference spectrum'!A106 -> 598 | B106: 0.015 | C106: =B106-$H$2*'Hb reference spectrum'!C106 -> 0.00531997644 | D106: =SUMPRODUCT(C92:C120,{126;99;74;51;30;11;-6;-21;-34;-45;-54;-61;-66;-69;-70;-69;-66;-61;-54;-45;-34;-21;-6;11;30;51;74;99;126})/56637 -> -2.283912814e-06 | E106: 5.21625774e-12
A107: ='Hb reference spectrum'!A107 -> 597.5 | B107: 0.015 | C107: =B107-$H$2*'Hb reference spectrum'!C107 -> 0.004947667842 | D107: =SUMPRODUCT(C93:C121,{126;99;74;51;30;11;-6;-21;-34;-45;-54;-61;-66;-69;-70;-69;-66;-61;-54;-45;-34;-21;-6;11;30;51;74;99;126})/56637 -> -2.747876353e-06 | E107: 7.550824453e-12
A108: ='Hb reference spectrum'!A108 -> 597 | B108: 0.016 | C108: =B108-$H$2*'Hb reference spectrum'!C108 -> 0.005203050645 | D108: =SUMPRODUCT(C94:C122,{126;99;74;51;30;11;-6;-21;-34;-45;-54;-61;-66;-69;-70;-69;-66;-61;-54;-45;-34;-21;-6;11;30;51;74;99;126})/56637 -> -3.38209864e-06 | E108: 1.143859121e-11
A109: ='Hb reference spectrum'!A109 -> 596.5 | B109: 0.016 | C109: =B109-$H$2*'Hb reference spectrum'!C109 -> 0.004830742047 | D109: =SUMPRODUCT(C95:C123,{126;99;74;51;30;11;-6;-21;-34;-45;-54;-61;-66;-69;-70;-69;-66;-61;-54;-45;-34;-21;-6;11;30;51;74;99;126})/56637 -> -4.20891396e-06 | E109: 1.771495672e-11
A110: ='Hb reference spectrum'!A110 -> 596 | B110: 0.017 | C110: =B110-$H$2*'Hb reference spectrum'!C110 -> 0.004713816251 | D110: =SUMPRODUCT(C96:C124,{126;99;74;51;30;11;-6;-21;-34;-45;-54;-61;-66;-69;-70;-69;-66;-61;-54;-45;-34;-21;-6;11;30;51;74;99;126})/56637 -> -5.129554747e-06 | E110: 2.63123319e-11
A111: ='Hb reference spectrum'!A111 -> 595.5 | B111: 0.018 | C111: =B111-$H$2*'Hb reference spectrum'!C111 -> 0.005341507653 | D111: =SUMPRODUCT(C97:C125,{126;99;74;51;30;11;-6;-21;-34;-45;-54;-61;-66;-69;-70;-69;-66;-61;-54;-45;-34;-21;-6;11;30;51;74;99;126})/56637 -> -5.225238597e-06 | E111: 2.73031184e-11
A112: ='Hb reference spectrum'!A112 -> 595 | B112: 0.018 | C112: =B112-$H$2*'Hb reference spectrum'!C112 -> 0.004596890456 | D112: =SUMPRODUCT(C98:C126,{126;99;74;51;30;11;-6;-21;-34;-45;-54;-61;-66;-69;-70;-69;-66;-61;-54;-45;-34;-21;-6;11;30;51;74;99;126})/56637 -> -5.74087209e-06 | E112: 3.295761235e-11
A113: ='Hb reference spectrum'!A113 -> 594.5 | B113: 0.019 | C113: =B113-$H$2*'Hb reference spectrum'!C113 -> 0.004479964661 | D113: =SUMPRODUCT(C99:C127,{126;99;74;51;30;11;-6;-21;-34;-45;-54;-61;-66;-69;-70;-69;-66;-61;-54;-45;-34;-21;-6;11;30;51;74;99;126})/56637 -> -5.891805818e-06 | E113: 3.471337579e-11
A114: ='Hb reference spectrum'!A114 -> 594 | B114: 0.02 | C114: =B114-$H$2*'Hb reference spectrum'!C114 -> 0.005107656062 | D114: =SUMPRODUCT(C100:C128,{126;99;74;51;30;11;-6;-21;-34;-45;-54;-61;-66;-69;-70;-69;-66;-61;-54;-45;-34;-21;-6;11;30;51;74;99;126})/56637 -> -4.827226656e-06 | E114: 2.330211718e-11
A115: ='Hb reference spectrum'!A115 -> 593.5 | B115: 0.021 | C115: =B115-$H$2*'Hb reference spectrum'!C115 -> 0.004990730267 | D115: =SUMPRODUCT(C101:C129,{126;99;74;51;30;11;-6;-21;-34;-45;-54;-61;-66;-69;-70;-69;-66;-61;-54;-45;-34;-21;-6;11;30;51;74;99;126})/56637 -> -4.796655258e-06 | E115: 2.300790167e-11
A116: ='Hb reference spectrum'!A116 -> 593 | B116: 0.022 | C116: =B116-$H$2*'Hb reference spectrum'!C116 -> 0.004873804472 | D116: =SUMPRODUCT(C102:C130,{126;99;74;51;30;11;-6;-21;-34;-45;-54;-61;-66;-69;-70;-69;-66;-61;-54;-45;-34;-21;-6;11;30;51;74;99;126})/56637 -> -5.84632327e-06 | E116: 3.417949578e-11
A117: ='Hb reference spectrum'!A117 -> 592.5 | B117: 0.023 | C117: =B117-$H$2*'Hb reference spectrum'!C117 -> 0.004756878676 | D117: =SUMPRODUCT(C103:C131,{126;99;74;51;30;11;-6;-21;-34;-45;-54;-61;-66;-69;-70;-69;-66;-61;-54;-45;-34;-21;-6;11;30;51;74;99;126})/56637 -> -4.232117764e-06 | E117: 1.791082077e-11
A118: ='Hb reference spectrum'!A118 -> 592 | B118: 0.024 | C118: =B118-$H$2*'Hb reference spectrum'!C118 -> 0.004267644282 | D118: =SUMPRODUCT(C104:C132,{126;99;74;51;30;11;-6;-21;-34;-45;-54;-61;-66;-69;-70;-69;-66;-61;-54;-45;-34;-21;-6;11;30;51;74;99;126})/56637 -> -2.341061019e-06 | E118: 5.480566696e-12
A119: ='Hb reference spectrum'!A119 -> 591.5 | B119: 0.026 | C119: =B119-$H$2*'Hb reference spectrum'!C119 -> 0.004778409889 | D119: =SUMPRODUCT(C105:C133,{126;99;74;51;30;11;-6;-21;-34;-45;-54;-61;-66;-69;-70;-69;-66;-61;-54;-45;-34;-21;-6;11;30;51;74;99;126})/56637 -> -3.387687739e-06 | E119: 1.147642821e-11
A120: ='Hb reference spectrum'!A120 -> 591 | B120: 0.027 | C120: =B120-$H$2*'Hb reference spectrum'!C120 -> 0.004661484093 | D120: =SUMPRODUCT(C106:C134,{126;99;74;51;30;11;-6;-21;-34;-45;-54;-61;-66;-69;-70;-69;-66;-61;-54;-45;-34;-21;-6;11;30;51;74;99;126})/56637 -> -1.600937316e-06 | E120: 2.56300029e-12
A121: ='Hb reference spectrum'!A121 -> 590.5 | B121: 0.029 | C121: =B121-$H$2*'Hb reference spectrum'!C121 -> 0.004799941101 | D121: =SUMPRODUCT(C107:C135,{126;99;74;51;30;11;-6;-21;-34;-45;-54;-61;-66;-69;-70;-69;-66;-61;-54;-45;-34;-21;-6;11;30;51;74;99;126})/56637 -> -1.547276508e-06 | E121: 2.394064592e-12
A122: ='Hb reference spectrum'!A122 -> 590 | B122: 0.03 | C122: =B122-$H$2*'Hb reference spectrum'!C122 -> 0.004310706707 | D122: =SUMPRODUCT(C108:C136,{126;99;74;51;30;11;-6;-21;-34;-45;-54;-61;-66;-69;-70;-69;-66;-61;-54;-45;-34;-21;-6;11;30;51;74;99;126})/56637 -> 8.370742422e-07 | E122: 7.006932869e-13
A123: ='Hb reference spectrum'!A123 -> 589.5 | B123: 0.032 | C123: =B123-$H$2*'Hb reference spectrum'!C123 -> 0.004076855117 | D123: =SUMPRODUCT(C109:C137,{126;99;74;51;30;11;-6;-21;-34;-45;-54;-61;-66;-69;-70;-69;-66;-61;-54;-45;-34;-21;-6;11;30;51;74;99;126})/56637 -> 2.843366748e-06 | E123: 8.084734464e-12
A124: ='Hb reference spectrum'!A124 -> 589 | B124: 0.034 | C124: =B124-$H$2*'Hb reference spectrum'!C124 -> 0.003843003526 | D124: =SUMPRODUCT(C110:C138,{126;99;74;51;30;11;-6;-21;-34;-45;-54;-61;-66;-69;-70;-69;-66;-61;-54;-45;-34;-21;-6;11;30;51;74;99;126})/56637 -> 2.843794533e-06 | E124: 8.087167347e-12
A125: ='Hb reference spectrum'!A125 -> 588.5 | B125: 0.036 | C125: =B125-$H$2*'Hb reference spectrum'!C125 -> 0.003981460534 | D125: =SUMPRODUCT(C111:C139,{126;99;74;51;30;11;-6;-21;-34;-45;-54;-61;-66;-69;-70;-69;-66;-61;-54;-45;-34;-21;-6;11;30;51;74;99;126})/56637 -> 4.726556145e-06 | E125: 2.234033299e-11
A126: ='Hb reference spectrum'!A126 -> 588 | B126: 0.039 | C126: =B126-$H$2*'Hb reference spectrum'!C126 -> 0.004375300345 | D126: =SUMPRODUCT(C112:C140,{126;99;74;51;30;11;-6;-21;-34;-45;-54;-61;-66;-69;-70;-69;-66;-61;-54;-45;-34;-21;-6;11;30;51;74;99;126})/56637 -> 5.334426035e-06 | E126: 2.845610113e-11
A127: ='Hb reference spectrum'!A127 -> 587.5 | B127: 0.041 | C127: =B127-$H$2*'Hb reference spectrum'!C127 -> 0.004141448754 | D127: =SUMPRODUCT(C113:C141,{126;99;74;51;30;11;-6;-21;-34;-45;-54;-61;-66;-69;-70;-69;-66;-61;-54;-45;-34;-21;-6;11;30;51;74;99;126})/56637 -> 7.360729435e-06 | E127: 5.418033781e-11
A128: ='Hb reference spectrum'!A128 -> 587 | B128: 0.044 | C128: =B128-$H$2*'Hb reference spectrum'!C128 -> 0.004162979966 | D128: =SUMPRODUCT(C114:C142,{126;99;74;51;30;11;-6;-21;-34;-45;-54;-61;-66;-69;-70;-69;-66;-61;-54;-45;-34;-21;-6;11;30;51;74;99;126})/56637 -> 1.028224522e-05 | E128: 1.057245667e-10
A129: ='Hb reference spectrum'!A129 -> 586.5 | B129: 0.046 | C129: =B129-$H$2*'Hb reference spectrum'!C129 -> 0.003556819777 | D129: =SUMPRODUCT(C115:C143,{126;99;74;51;30;11;-6;-21;-34;-45;-54;-61;-66;-69;-70;-69;-66;-61;-54;-45;-34;-21;-6;11;30;51;74;99;126})/56637 -> 1.11052165e-05 | E129: 1.233258335e-10
A130: ='Hb reference spectrum'!A130 -> 586 | B130: 0.049 | C130: =B130-$H$2*'Hb reference spectrum'!C130 -> 0.00357835099 | D130: =SUMPRODUCT(C116:C144,{126;99;74;51;30;11;-6;-21;-34;-45;-54;-61;-66;-69;-70;-69;-66;-61;-54;-45;-34;-21;-6;11;30;51;74;99;126})/56637 -> 1.095959901e-05 | E130: =D130^2 -> 1.201128104e-10
A131: ='Hb reference spectrum'!A131 -> 585.5 | B131: 0.053 | C131: =B131-$H$2*'Hb reference spectrum'!C131 -> 0.004227573604 | D131: =SUMPRODUCT(C117:C145,{126;99;74;51;30;11;-6;-21;-34;-45;-54;-61;-66;-69;-70;-69;-66;-61;-54;-45;-34;-21;-6;11;30;51;74;99;126})/56637 -> 1.16701325e-05 | E131: 1.361919926e-10
A132: ='Hb reference spectrum'!A132 -> 585 | B132: 0.056 | C132: =B132-$H$2*'Hb reference spectrum'!C132 -> 0.003876796218 | D132: =SUMPRODUCT(C118:C146,{126;99;74;51;30;11;-6;-21;-34;-45;-54;-61;-66;-69;-70;-69;-66;-61;-54;-45;-34;-21;-6;11;30;51;74;99;126})/56637 -> 1.387418101e-05 | E132: 1.924928986e-10
A133: ='Hb reference spectrum'!A133 -> 584.5 | B133: 0.059 | C133: =B133-$H$2*'Hb reference spectrum'!C133 -> 0.003153710233 | D133: =SUMPRODUCT(C119:C147,{126;99;74;51;30;11;-6;-21;-34;-45;-54;-61;-66;-69;-70;-69;-66;-61;-54;-45;-34;-21;-6;11;30;51;74;99;126})/56637 -> 1.601972705e-05 | E133: 2.566316548e-10
A134: ='Hb reference spectrum'!A134 -> 584 | B134: 0.063 | C134: =B134-$H$2*'Hb reference spectrum'!C134 -> 0.003802932847 | D134: =SUMPRODUCT(C120:C148,{126;99;74;51;30;11;-6;-21;-34;-45;-54;-61;-66;-69;-70;-69;-66;-61;-54;-45;-34;-21;-6;11;30;51;74;99;126})/56637 -> 1.57396276e-05 | E134: 2.47735877e-10
A135: ='Hb reference spectrum'!A135 -> 583.5 | B135: 0.067 | C135: =B135-$H$2*'Hb reference spectrum'!C135 -> 0.003707538265 | D135: =SUMPRODUCT(C121:C149,{126;99;74;51;30;11;-6;-21;-34;-45;-54;-61;-66;-69;-70;-69;-66;-61;-54;-45;-34;-21;-6;11;30;51;74;99;126})/56637 -> 1.707190647e-05 | E135: 2.914499906e-10
A136: ='Hb reference spectrum'!A136 -> 583 | B136: 0.071 | C136: =B136-$H$2*'Hb reference spectrum'!C136 -> 0.004356760879 | D136: =SUMPRODUCT(C122:C150,{126;99;74;51;30;11;-6;-21;-34;-45;-54;-61;-66;-69;-70;-69;-66;-61;-54;-45;-34;-21;-6;11;30;51;74;99;126})/56637 -> 1.671727975e-05 | E136: 2.794674422e-10
A137: ='Hb reference spectrum'!A137 -> 582.5 | B137: 0.075 | C137: =B137-$H$2*'Hb reference spectrum'!C137 -> 0.004633674894 | D137: =SUMPRODUCT(C123:C151,{126;99;74;51;30;11;-6;-21;-34;-45;-54;-61;-66;-69;-70;-69;-66;-61;-54;-45;-34;-21;-6;11;30;51;74;99;126})/56637 -> 1.805081515e-05 | E137: 3.258319276e-10
A138: ='Hb reference spectrum'!A138 -> 582 | B138: 0.078 | C138: =B138-$H$2*'Hb reference spectrum'!C138 -> 0.003538280311 | D138: =SUMPRODUCT(C124:C152,{126;99;74;51;30;11;-6;-21;-34;-45;-54;-61;-66;-69;-70;-69;-66;-61;-54;-45;-34;-21;-6;11;30;51;74;99;126})/56637 -> 1.730503582e-05 | E138: 2.994642648e-10
A139: ='Hb reference spectrum'!A139 -> 581.5 | B139: 0.082 | C139: =B139-$H$2*'Hb reference spectrum'!C139 -> 0.004187502925 | D139: =SUMPRODUCT(C125:C153,{126;99;74;51;30;11;-6;-21;-34;-45;-54;-61;-66;-69;-70;-69;-66;-61;-54;-45;-34;-21;-6;11;30;51;74;99;126})/56637 -> 1.667888532e-05 | E139: 2.781852156e-10
A140: ='Hb reference spectrum'!A140 -> 581 | B140: 0.086 | C140: =B140-$H$2*'Hb reference spectrum'!C140 -> 0.004464416941 | D140: =SUMPRODUCT(C126:C154,{126;99;74;51;30;11;-6;-21;-34;-45;-54;-61;-66;-69;-70;-69;-66;-61;-54;-45;-34;-21;-6;11;30;51;74;99;126})/56637 -> 1.532697324e-05 | E140: 2.349161087e-10
A141: ='Hb reference spectrum'!A141 -> 580.5 | B141: 0.089 | C141: =B141-$H$2*'Hb reference spectrum'!C141 -> 0.004485948153 | D141: =SUMPRODUCT(C127:C155,{126;99;74;51;30;11;-6;-21;-34;-45;-54;-61;-66;-69;-70;-69;-66;-61;-54;-45;-34;-21;-6;11;30;51;74;99;126})/56637 -> 1.501732683e-05 | E141: 2.255201052e-10
A142: ='Hb reference spectrum'!A142 -> 580 | B142: 0.092 | C142: =B142-$H$2*'Hb reference spectrum'!C142 -> 0.004879787964 | D142: =SUMPRODUCT(C128:C156,{126;99;74;51;30;11;-6;-21;-34;-45;-54;-61;-66;-69;-70;-69;-66;-61;-54;-45;-34;-21;-6;11;30;51;74;99;126})/56637 -> 1.206737172e-05 | E142: 1.456214603e-10
A143: ='Hb reference spectrum'!A143 -> 579.5 | B143: 0.095 | C143: =B143-$H$2*'Hb reference spectrum'!C143 -> 0.004901319177 | D143: =SUMPRODUCT(C129:C157,{126;99;74;51;30;11;-6;-21;-34;-45;-54;-61;-66;-69;-70;-69;-66;-61;-54;-45;-34;-21;-6;11;30;51;74;99;126})/56637 -> 8.954539411e-06 | E143: 8.018377606e-11
A144: ='Hb reference spectrum'!A144 -> 579 | B144: 0.097 | C144: =B144-$H$2*'Hb reference spectrum'!C144 -> 0.004667467586 | D144: =SUMPRODUCT(C130:C158,{126;99;74;51;30;11;-6;-21;-34;-45;-54;-61;-66;-69;-70;-69;-66;-61;-54;-45;-34;-21;-6;11;30;51;74;99;126})/56637 -> 8.789428032e-06 | E144: 7.725404512e-11
A145: ='Hb reference spectrum'!A145 -> 578.5 | B145: 0.099 | C145: =B145-$H$2*'Hb reference spectrum'!C145 -> 0.005178233192 | D145: =SUMPRODUCT(C131:C159,{126;99;74;51;30;11;-6;-21;-34;-45;-54;-61;-66;-69;-70;-69;-66;-61;-54;-45;-34;-21;-6;11;30;51;74;99;126})/56637 -> 6.849436087e-06 | E145: 4.691477472e-11
A146: ='Hb reference spectrum'!A146 -> 578 | B146: 0.101 | C146: =B146-$H$2*'Hb reference spectrum'!C146 -> 0.006061307397 | D146: =SUMPRODUCT(C132:C160,{126;99;74;51;30;11;-6;-21;-34;-45;-54;-61;-66;-69;-70;-69;-66;-61;-54;-45;-34;-21;-6;11;30;51;74;99;126})/56637 -> 3.483946033e-06 | E146: 1.213787996e-11
A147: ='Hb reference spectrum'!A147 -> 577.5 | B147: 0.102 | C147: =B147-$H$2*'Hb reference spectrum'!C147 -> 0.005944381601 | D147: =SUMPRODUCT(C133:C161,{126;99;74;51;30;11;-6;-21;-34;-45;-54;-61;-66;-69;-70;-69;-66;-61;-54;-45;-34;-21;-6;11;30;51;74;99;126})/56637 -> 1.123006833e-06 | E147: 1.261144346e-12
A148: ='Hb reference spectrum'!A148 -> 577 | B148: 0.103 | C148: =B148-$H$2*'Hb reference spectrum'!C148 -> 0.005827455806 | D148: =SUMPRODUCT(C134:C162,{126;99;74;51;30;11;-6;-21;-34;-45;-54;-61;-66;-69;-70;-69;-66;-61;-54;-45;-34;-21;-6;11;30;51;74;99;126})/56637 -> 1.832523197e-07 | E148: 3.358141267e-14
A149: ='Hb reference spectrum'!A149 -> 576.5 | B149: 0.104 | C149: =B149-$H$2*'Hb reference spectrum'!C149 -> 0.006827455806 | D149: =SUMPRODUCT(C135:C163,{126;99;74;51;30;11;-6;-21;-34;-45;-54;-61;-66;-69;-70;-69;-66;-61;-54;-45;-34;-21;-6;11;30;51;74;99;126})/56637 -> -1.634765774e-06 | E149: 2.672459137e-12
A150: ='Hb reference spectrum'!A150 -> 576 | B150: 0.104 | C150: =B150-$H$2*'Hb reference spectrum'!C150 -> 0.006827455806 | D150: =SUMPRODUCT(C136:C164,{126;99;74;51;30;11;-6;-21;-34;-45;-54;-61;-66;-69;-70;-69;-66;-61;-54;-45;-34;-21;-6;11;30;51;74;99;126})/56637 -> -3.401562499e-06 | E150: 1.157062744e-11
A151: ='Hb reference spectrum'!A151 -> 575.5 | B151: 0.104 | C151: =B151-$H$2*'Hb reference spectrum'!C151 -> 0.007572073003 | D151: =SUMPRODUCT(C137:C165,{126;99;74;51;30;11;-6;-21;-34;-45;-54;-61;-66;-69;-70;-69;-66;-61;-54;-45;-34;-21;-6;11;30;51;74;99;126})/56637 -> -6.864625986e-06 | E151: 4.712308993e-11
A152: ='Hb reference spectrum'!A152 -> 575 | B152: 0.103 | C152: =B152-$H$2*'Hb reference spectrum'!C152 -> 0.006944381601 | D152: =SUMPRODUCT(C138:C166,{126;99;74;51;30;11;-6;-21;-34;-45;-54;-61;-66;-69;-70;-69;-66;-61;-54;-45;-34;-21;-6;11;30;51;74;99;126})/56637 -> -1.19520797e-05 | E152: 1.42852209e-10
A153: ='Hb reference spectrum'!A153 -> 574.5 | B153: 0.102 | C153: =B153-$H$2*'Hb reference spectrum'!C153 -> 0.007061307397 | D153: =SUMPRODUCT(C139:C167,{126;99;74;51;30;11;-6;-21;-34;-45;-54;-61;-66;-69;-70;-69;-66;-61;-54;-45;-34;-21;-6;11;30;51;74;99;126})/56637 -> -1.384532134e-05 | E153: 1.916929229e-10
A154: ='Hb reference spectrum'!A154 -> 574 | B154: 0.101 | C154: =B154-$H$2*'Hb reference spectrum'!C154 -> 0.007178233192 | D154: =SUMPRODUCT(C140:C168,{126;99;74;51;30;11;-6;-21;-34;-45;-54;-61;-66;-69;-70;-69;-66;-61;-54;-45;-34;-21;-6;11;30;51;74;99;126})/56637 -> -1.514194986e-05 | E154: 2.292786457e-10
A155: ='Hb reference spectrum'!A155 -> 573.5 | B155: 0.1 | C155: =B155-$H$2*'Hb reference spectrum'!C155 -> 0.008412084783 | D155: =SUMPRODUCT(C141:C169,{126;99;74;51;30;11;-6;-21;-34;-45;-54;-61;-66;-69;-70;-69;-66;-61;-54;-45;-34;-21;-6;11;30;51;74;99;126})/56637 -> -1.748758133e-05 | E155: 3.058155007e-10
A156: ='Hb reference spectrum'!A156 -> 573 | B156: 0.098 | C156: =B156-$H$2*'Hb reference spectrum'!C156 -> 0.007529010578 | D156: =SUMPRODUCT(C142:C170,{126;99;74;51;30;11;-6;-21;-34;-45;-54;-61;-66;-69;-70;-69;-66;-61;-54;-45;-34;-21;-6;11;30;51;74;99;126})/56637 -> -1.772358558e-05 | E156: 3.141254858e-10
A157: ='Hb reference spectrum'!A157 -> 572.5 | B157: 0.096 | C157: =B157-$H$2*'Hb reference spectrum'!C157 -> 0.007762862169 | D157: =SUMPRODUCT(C143:C171,{126;99;74;51;30;11;-6;-21;-34;-45;-54;-61;-66;-69;-70;-69;-66;-61;-54;-45;-34;-21;-6;11;30;51;74;99;126})/56637 -> -1.92232932e-05 | E157: 3.695350013e-10
A158: ='Hb reference spectrum'!A158 -> 572 | B158: 0.095 | C158: =B158-$H$2*'Hb reference spectrum'!C158 -> 0.008624405161 | D158: =SUMPRODUCT(C144:C172,{126;99;74;51;30;11;-6;-21;-34;-45;-54;-61;-66;-69;-70;-69;-66;-61;-54;-45;-34;-21;-6;11;30;51;74;99;126})/56637 -> -1.94116508e-05 | E158: 3.768121869e-10
A159: ='Hb reference spectrum'!A159 -> 571.5 | B159: 0.093 | C159: =B159-$H$2*'Hb reference spectrum'!C159 -> 0.008113639555 | D159: =SUMPRODUCT(C145:C173,{126;99;74;51;30;11;-6;-21;-34;-45;-54;-61;-66;-69;-70;-69;-66;-61;-54;-45;-34;-21;-6;11;30;51;74;99;126})/56637 -> -1.755741608e-05 | E159: 3.082628595e-10
A160: ='Hb reference spectrum'!A160 -> 571 | B160: 0.091 | C160: =B160-$H$2*'Hb reference spectrum'!C160 -> 0.008347491145 | D160: =SUMPRODUCT(C146:C174,{126;99;74;51;30;11;-6;-21;-34;-45;-54;-61;-66;-69;-70;-69;-66;-61;-54;-45;-34;-21;-6;11;30;51;74;99;126})/56637 -> -1.635119511e-05 | E160: 2.673615817e-10
A161: ='Hb reference spectrum'!A161 -> 570.5 | B161: 0.089 | C161: =B161-$H$2*'Hb reference spectrum'!C161 -> 0.008581342736 | D161: =SUMPRODUCT(C147:C175,{126;99;74;51;30;11;-6;-21;-34;-45;-54;-61;-66;-69;-70;-69;-66;-61;-54;-45;-34;-21;-6;11;30;51;74;99;126})/56637 -> -1.602583044e-05 | E161: 2.568272412e-10
A162: ='Hb reference spectrum'!A162 -> 570 | B162: 0.087 | C162: =B162-$H$2*'Hb reference spectrum'!C162 -> 0.008442885728 | D162: =SUMPRODUCT(C148:C176,{126;99;74;51;30;11;-6;-21;-34;-45;-54;-61;-66;-69;-70;-69;-66;-61;-54;-45;-34;-21;-6;11;30;51;74;99;126})/56637 -> -1.3726978e-05 | E162: 1.884299249e-10
A163: ='Hb reference spectrum'!A163 -> 569.5 | B163: 0.085 | C163: =B163-$H$2*'Hb reference spectrum'!C163 -> 0.008676737319 | D163: =SUMPRODUCT(C149:C177,{126;99;74;51;30;11;-6;-21;-34;-45;-54;-61;-66;-69;-70;-69;-66;-61;-54;-45;-34;-21;-6;11;30;51;74;99;126})/56637 -> -1.090304604e-05 | E163: 1.18876413e-10
A164: ='Hb reference spectrum'!A164 -> 569 | B164: 0.083 | C164: =B164-$H$2*'Hb reference spectrum'!C164 -> 0.008538280311 | D164: =SUMPRODUCT(C150:C178,{126;99;74;51;30;11;-6;-21;-34;-45;-54;-61;-66;-69;-70;-69;-66;-61;-54;-45;-34;-21;-6;11;30;51;74;99;126})/56637 -> -1.117450577e-05 | E164: 1.248695792e-10
A165: ='Hb reference spectrum'!A165 -> 568.5 | B165: 0.081 | C165: =B165-$H$2*'Hb reference spectrum'!C165 -> 0.008399823303 | D165: =SUMPRODUCT(C151:C179,{126;99;74;51;30;11;-6;-21;-34;-45;-54;-61;-66;-69;-70;-69;-66;-61;-54;-45;-34;-21;-6;11;30;51;74;99;126})/56637 -> -8.925887484e-06 | E165: 7.967146738e-11
A166: ='Hb reference spectrum'!A166 -> 568 | B166: 0.079 | C166: =B166-$H$2*'Hb reference spectrum'!C166 -> 0.007889057697 | D166: =SUMPRODUCT(C152:C180,{126;99;74;51;30;11;-6;-21;-34;-45;-54;-61;-66;-69;-70;-69;-66;-61;-54;-45;-34;-21;-6;11;30;51;74;99;126})/56637 -> -8.190114428e-06 | E166: 6.707797434e-11
A167: ='Hb reference spectrum'!A167 -> 567.5 | B167: 0.077 | C167: =B167-$H$2*'Hb reference spectrum'!C167 -> 0.007750600689 | D167: =SUMPRODUCT(C153:C181,{126;99;74;51;30;11;-6;-21;-34;-45;-54;-61;-66;-69;-70;-69;-66;-61;-54;-45;-34;-21;-6;11;30;51;74;99;126})/56637 -> -5.576411014e-06 | E167: 3.10963598e-11
A168: ='Hb reference spectrum'!A168 -> 567 | B168: 0.076 | C168: =B168-$H$2*'Hb reference spectrum'!C168 -> 0.008239835083 | D168: =SUMPRODUCT(C154:C182,{126;99;74;51;30;11;-6;-21;-34;-45;-54;-61;-66;-69;-70;-69;-66;-61;-54;-45;-34;-21;-6;11;30;51;74;99;126})/56637 -> -2.762616982e-06 | E168: 7.632052588e-12
A169: ='Hb reference spectrum'!A169 -> 566.5 | B169: 0.074 | C169: =B169-$H$2*'Hb reference spectrum'!C169 -> 0.007729069477 | D169: =SUMPRODUCT(C155:C183,{126;99;74;51;30;11;-6;-21;-34;-45;-54;-61;-66;-69;-70;-69;-66;-61;-54;-45;-34;-21;-6;11;30;51;74;99;126})/56637 -> 2.258444669e-07 | E169: 5.100572325e-14
A170: ='Hb reference spectrum'!A170 -> 566 | B170: 0.073 | C170: =B170-$H$2*'Hb reference spectrum'!C170 -> 0.008218303871 | D170: =SUMPRODUCT(C156:C184,{126;99;74;51;30;11;-6;-21;-34;-45;-54;-61;-66;-69;-70;-69;-66;-61;-54;-45;-34;-21;-6;11;30;51;74;99;126})/56637 -> 3.027003323e-07 | E170: 9.16274912e-14
A171: ='Hb reference spectrum'!A171 -> 565.5 | B171: 0.071 | C171: =B171-$H$2*'Hb reference spectrum'!C171 -> 0.007707538265 | D171: =SUMPRODUCT(C157:C185,{126;99;74;51;30;11;-6;-21;-34;-45;-54;-61;-66;-69;-70;-69;-66;-61;-54;-45;-34;-21;-6;11;30;51;74;99;126})/56637 -> 1.788100306e-06 | E171: 3.197302703e-12
A172: ='Hb reference spectrum'!A172 -> 565 | B172: 0.07 | C172: =B172-$H$2*'Hb reference spectrum'!C172 -> 0.00782446406 | D172: =SUMPRODUCT(C158:C186,{126;99;74;51;30;11;-6;-21;-34;-45;-54;-61;-66;-69;-70;-69;-66;-61;-54;-45;-34;-21;-6;11;30;51;74;99;126})/56637 -> 4.497598416e-06 | E172: 2.022839151e-11
A173: ='Hb reference spectrum'!A173 -> 564.5 | B173: 0.069 | C173: =B173-$H$2*'Hb reference spectrum'!C173 -> 0.007941389855 | D173: =SUMPRODUCT(C159:C187,{126;99;74;51;30;11;-6;-21;-34;-45;-54;-61;-66;-69;-70;-69;-66;-61;-54;-45;-34;-21;-6;11;30;51;74;99;126})/56637 -> 4.066233526e-06 | E173: 1.653425509e-11
A174: ='Hb reference spectrum'!A174 -> 564 | B174: 0.068 | C174: =B174-$H$2*'Hb reference spectrum'!C174 -> 0.007686007052 | D174: =SUMPRODUCT(C160:C188,{126;99;74;51;30;11;-6;-21;-34;-45;-54;-61;-66;-69;-70;-69;-66;-61;-54;-45;-34;-21;-6;11;30;51;74;99;126})/56637 -> 5.370677405e-06 | E174: 2.884417579e-11
A175: ='Hb reference spectrum'!A175 -> 563.5 | B175: 0.067 | C175: =B175-$H$2*'Hb reference spectrum'!C175 -> 0.007802932847 | D175: =SUMPRODUCT(C161:C189,{126;99;74;51;30;11;-6;-21;-34;-45;-54;-61;-66;-69;-70;-69;-66;-61;-54;-45;-34;-21;-6;11;30;51;74;99;126})/56637 -> 7.334328589e-06 | E175: 5.379237586e-11
A176: ='Hb reference spectrum'!A176 -> 563 | B176: 0.067 | C176: =B176-$H$2*'Hb reference spectrum'!C176 -> 0.008175241446 | D176: =SUMPRODUCT(C162:C190,{126;99;74;51;30;11;-6;-21;-34;-45;-54;-61;-66;-69;-70;-69;-66;-61;-54;-45;-34;-21;-6;11;30;51;74;99;126})/56637 -> 5.650892075e-06 | E176: 3.193258124e-11
A177: ='Hb reference spectrum'!A177 -> 562.5 | B177: 0.066 | C177: =B177-$H$2*'Hb reference spectrum'!C177 -> 0.007919858643 | D177: =SUMPRODUCT(C163:C191,{126;99;74;51;30;11;-6;-21;-34;-45;-54;-61;-66;-69;-70;-69;-66;-61;-54;-45;-34;-21;-6;11;30;51;74;99;126})/56637 -> 4.812787952e-06 | E177: 2.316292787e-11
A178: ='Hb reference spectrum'!A178 -> 562 | B178: 0.065 | C178: =B178-$H$2*'Hb reference spectrum'!C178 -> 0.007292167241 | D178: =SUMPRODUCT(C164:C192,{126;99;74;51;30;11;-6;-21;-34;-45;-54;-61;-66;-69;-70;-69;-66;-61;-54;-45;-34;-21;-6;11;30;51;74;99;126})/56637 -> 3.723530311e-06 | E178: 1.386467797e-11
A179: ='Hb reference spectrum'!A179 -> 561.5 | B179: 0.065 | C179: =B179-$H$2*'Hb reference spectrum'!C179 -> 0.008036784438 | D179: =SUMPRODUCT(C165:C193,{126;99;74;51;30;11;-6;-21;-34;-45;-54;-61;-66;-69;-70;-69;-66;-61;-54;-45;-34;-21;-6;11;30;51;74;99;126})/56637 -> 3.134573253e-06 | E179: 9.825549478e-12
A180: ='Hb reference spectrum'!A180 -> 561 | B180: 0.065 | C180: =B180-$H$2*'Hb reference spectrum'!C180 -> 0.008036784438 | D180: =SUMPRODUCT(C166:C194,{126;99;74;51;30;11;-6;-21;-34;-45;-54;-61;-66;-69;-70;-69;-66;-61;-54;-45;-34;-21;-6;11;30;51;74;99;126})/56637 -> 2.154732903e-06 | E180: 4.642873884e-12
A181: ='Hb reference spectrum'!A181 -> 560.5 | B181: 0.065 | C181: =B181-$H$2*'Hb reference spectrum'!C181 -> 0.008036784438 | D181: =SUMPRODUCT(C167:C195,{126;99;74;51;30;11;-6;-21;-34;-45;-54;-61;-66;-69;-70;-69;-66;-61;-54;-45;-34;-21;-6;11;30;51;74;99;126})/56637 -> 4.156093708e-06 | E181: 1.727311491e-11
A182: ='Hb reference spectrum'!A182 -> 560 | B182: 0.065 | C182: =B182-$H$2*'Hb reference spectrum'!C182 -> 0.008036784438 | D182: =SUMPRODUCT(C168:C196,{126;99;74;51;30;11;-6;-21;-34;-45;-54;-61;-66;-69;-70;-69;-66;-61;-54;-45;-34;-21;-6;11;30;51;74;99;126})/56637 -> 5.751359557e-06 | E182: 3.307813675e-11
A183: ='Hb reference spectrum'!A183 -> 559.5 | B183: 0.065 | C183: =B183-$H$2*'Hb reference spectrum'!C183 -> 0.008036784438 | D183: =SUMPRODUCT(C169:C197,{126;99;74;51;30;11;-6;-21;-34;-45;-54;-61;-66;-69;-70;-69;-66;-61;-54;-45;-34;-21;-6;11;30;51;74;99;126})/56637 -> 5.401174354e-06 | E183: 2.917268441e-11
A184: ='Hb reference spectrum'!A184 -> 559 | B184: 0.065 | C184: =B184-$H$2*'Hb reference spectrum'!C184 -> 0.008036784438 | D184: =SUMPRODUCT(C170:C198,{126;99;74;51;30;11;-6;-21;-34;-45;-54;-61;-66;-69;-70;-69;-66;-61;-54;-45;-34;-21;-6;11;30;51;74;99;126})/56637 -> 7.074346506e-06 | E184: 5.004637849e-11
A185: ='Hb reference spectrum'!A185 -> 558.5 | B185: 0.065 | C185: =B185-$H$2*'Hb reference spectrum'!C185 -> 0.00766447584 | D185: =SUMPRODUCT(C171:C199,{126;99;74;51;30;11;-6;-21;-34;-45;-54;-61;-66;-69;-70;-69;-66;-61;-54;-45;-34;-21;-6;11;30;51;74;99;126})/56637 -> 5.871822333e-06 | E185: 3.447829751e-11
A186: ='Hb reference spectrum'!A186 -> 558 | B186: 0.066 | C186: =B186-$H$2*'Hb reference spectrum'!C186 -> 0.008292167241 | D186: =SUMPRODUCT(C172:C200,{126;99;74;51;30;11;-6;-21;-34;-45;-54;-61;-66;-69;-70;-69;-66;-61;-54;-45;-34;-21;-6;11;30;51;74;99;126})/56637 -> 6.782837835e-06 | E186: 4.600688909e-11
A187: ='Hb reference spectrum'!A187 -> 557.5 | B187: 0.066 | C187: =B187-$H$2*'Hb reference spectrum'!C187 -> 0.007919858643 | D187: =SUMPRODUCT(C173:C201,{126;99;74;51;30;11;-6;-21;-34;-45;-54;-61;-66;-69;-70;-69;-66;-61;-54;-45;-34;-21;-6;11;30;51;74;99;126})/56637 -> 6.757039669e-06 | E187: 4.565758509e-11
A188: ='Hb reference spectrum'!A188 -> 557 | B188: 0.067 | C188: =B188-$H$2*'Hb reference spectrum'!C188 -> 0.008175241446 | D188: =SUMPRODUCT(C174:C202,{126;99;74;51;30;11;-6;-21;-34;-45;-54;-61;-66;-69;-70;-69;-66;-61;-54;-45;-34;-21;-6;11;30;51;74;99;126})/56637 -> 7.246479236e-06 | E188: 5.251146131e-11
A189: ='Hb reference spectrum'!A189 -> 556.5 | B189: 0.068 | C189: =B189-$H$2*'Hb reference spectrum'!C189 -> 0.008802932847 | D189: =SUMPRODUCT(C175:C203,{126;99;74;51;30;11;-6;-21;-34;-45;-54;-61;-66;-69;-70;-69;-66;-61;-54;-45;-34;-21;-6;11;30;51;74;99;126})/56637 -> 5.965235614e-06 | E189: 3.558403593e-11
A190: ='Hb reference spectrum'!A190 -> 556 | B190: 0.068 | C190: =B190-$H$2*'Hb reference spectrum'!C190 -> 0.007686007052 | D190: =SUMPRODUCT(C176:C204,{126;99;74;51;30;11;-6;-21;-34;-45;-54;-61;-66;-69;-70;-69;-66;-61;-54;-45;-34;-21;-6;11;30;51;74;99;126})/56637 -> 6.395676511e-06 | E190: 4.090467803e-11
A191: ='Hb reference spectrum'!A191 -> 555.5 | B191: 0.069 | C191: =B191-$H$2*'Hb reference spectrum'!C191 -> 0.007941389855 | D191: =SUMPRODUCT(C177:C205,{126;99;74;51;30;11;-6;-21;-34;-45;-54;-61;-66;-69;-70;-69;-66;-61;-54;-45;-34;-21;-6;11;30;51;74;99;126})/56637 -> 6.573770581e-06 | E191: 4.321445965e-11
A192: ='Hb reference spectrum'!A192 -> 555 | B192: 0.07 | C192: =B192-$H$2*'Hb reference spectrum'!C192 -> 0.008196772658 | D192: =SUMPRODUCT(C178:C206,{126;99;74;51;30;11;-6;-21;-34;-45;-54;-61;-66;-69;-70;-69;-66;-61;-54;-45;-34;-21;-6;11;30;51;74;99;126})/56637 -> 6.448829886e-06 | E192: 4.15874069e-11
A193: ='Hb reference spectrum'!A193 -> 554.5 | B193: 0.071 | C193: =B193-$H$2*'Hb reference spectrum'!C193 -> 0.008452155461 | D193: =SUMPRODUCT(C179:C207,{126;99;74;51;30;11;-6;-21;-34;-45;-54;-61;-66;-69;-70;-69;-66;-61;-54;-45;-34;-21;-6;11;30;51;74;99;126})/56637 -> 7.883509897e-06 | E193: 6.21497283e-11
A194: ='Hb reference spectrum'!A194 -> 554 | B194: 0.072 | C194: =B194-$H$2*'Hb reference spectrum'!C194 -> 0.008335229666 | D194: =SUMPRODUCT(C180:C208,{126;99;74;51;30;11;-6;-21;-34;-45;-54;-61;-66;-69;-70;-69;-66;-61;-54;-45;-34;-21;-6;11;30;51;74;99;126})/56637 -> 9.141246722e-06 | E194: =D194^2 -> 8.356239164e-11
A195: ='Hb reference spectrum'!A195 -> 553.5 | B195: 0.074 | C195: =B195-$H$2*'Hb reference spectrum'!C195 -> 0.009218303871 | D195: =SUMPRODUCT(C181:C209,{126;99;74;51;30;11;-6;-21;-34;-45;-54;-61;-66;-69;-70;-69;-66;-61;-54;-45;-34;-21;-6;11;30;51;74;99;126})/56637 -> 8.490365748e-06 | E195: 7.208631054e-11
A196: ='Hb reference spectrum'!A196 -> 553 | B196: 0.075 | C196: =B196-$H$2*'Hb reference spectrum'!C196 -> 0.009101378075 | D196: =SUMPRODUCT(C182:C210,{126;99;74;51;30;11;-6;-21;-34;-45;-54;-61;-66;-69;-70;-69;-66;-61;-54;-45;-34;-21;-6;11;30;51;74;99;126})/56637 -> 9.333971401e-06 | E196: 8.712302212e-11
A197: ='Hb reference spectrum'!A197 -> 552.5 | B197: 0.076 | C197: =B197-$H$2*'Hb reference spectrum'!C197 -> 0.00898445228 | D197: =SUMPRODUCT(C183:C211,{126;99;74;51;30;11;-6;-21;-34;-45;-54;-61;-66;-69;-70;-69;-66;-61;-54;-45;-34;-21;-6;11;30;51;74;99;126})/56637 -> 9.126023833e-06 | E197: 8.3284311e-11
A198: ='Hb reference spectrum'!A198 -> 552 | B198: 0.078 | C198: =B198-$H$2*'Hb reference spectrum'!C198 -> 0.009495217886 | D198: =SUMPRODUCT(C184:C212,{126;99;74;51;30;11;-6;-21;-34;-45;-54;-61;-66;-69;-70;-69;-66;-61;-54;-45;-34;-21;-6;11;30;51;74;99;126})/56637 -> 1.027777522e-05 | E198: 1.056326635e-10
A199: ='Hb reference spectrum'!A199 -> 551.5 | B199: 0.079 | C199: =B199-$H$2*'Hb reference spectrum'!C199 -> 0.009005983493 | D199: =SUMPRODUCT(C185:C213,{126;99;74;51;30;11;-6;-21;-34;-45;-54;-61;-66;-69;-70;-69;-66;-61;-54;-45;-34;-21;-6;11;30;51;74;99;126})/56637 -> 1.027024041e-05 | E199: 1.054778381e-10
A200: ='Hb reference spectrum'!A200 -> 551 | B200: 0.081 | C200: =B200-$H$2*'Hb reference spectrum'!C200 -> 0.009516749099 | D200: =SUMPRODUCT(C186:C214,{126;99;74;51;30;11;-6;-21;-34;-45;-54;-61;-66;-69;-70;-69;-66;-61;-54;-45;-34;-21;-6;11;30;51;74;99;126})/56637 -> 1.116421186e-05 | E200: 1.246396265e-10
... 402 more rows
